Publisher Label,Publisher URI,"Supplier","Net Amount £","Organisational Unit","Merchant Category Code","Purpose","Payment Date"
"Wolverhampton City Council","http://opendatacommunities.org/id/metropolitan-district-council/wolverhampton","Amazon.co.uk MA2KD5YO4",97.86,"Strategic ICTS (ICT Serv Budget)","5969","Computing - Purchase of Hardware","30/09/2019"
"Wolverhampton City Council","http://opendatacommunities.org/id/metropolitan-district-council/wolverhampton","ASDA GROCERIES ONLINE",-6.75,"Key to Inspiration","5411","Provisions (Not for resale)","30/09/2019"
"Wolverhampton City Council","http://opendatacommunities.org/id/metropolitan-district-council/wolverhampton","ARGOS WOLVERHAMPTO",29.99,"Key to Inspiration","5310","Computing - Purchase of Software","30/09/2019"
"Wolverhampton City Council","http://opendatacommunities.org/id/metropolitan-district-council/wolverhampton","ASDA GROCERIES ONLINE",200.71,"Key to Inspiration","5411","Provisions (Not for resale)","30/09/2019"
"Wolverhampton City Council","http://opendatacommunities.org/id/metropolitan-district-council/wolverhampton","NANDOS WEDNESFIELD",26.55,"Key to Inspiration","5812","Client Allowances","30/09/2019"
"Wolverhampton City Council","http://opendatacommunities.org/id/metropolitan-district-council/wolverhampton","SAINSBURYS (2340)",20,"Key to Inspiration","5411","Client Allowances","30/09/2019"
"Wolverhampton City Council","http://opendatacommunities.org/id/metropolitan-district-council/wolverhampton","SAINSBURYS (2340)",-40,"Key to Inspiration","5411","Client Allowances","30/09/2019"
"Wolverhampton City Council","http://opendatacommunities.org/id/metropolitan-district-council/wolverhampton","SAINSBURYS (2340)",40,"Key to Inspiration","5411","Client Allowances","30/09/2019"
"Wolverhampton City Council","http://opendatacommunities.org/id/metropolitan-district-council/wolverhampton","ASDA GROCERIES ONLINE",-1.08,"Bradley Resource Centre","5411","Provisions (Not for resale)","30/09/2019"
"Wolverhampton City Council","http://opendatacommunities.org/id/metropolitan-district-council/wolverhampton","ASDA GROCERIES ONLINE",164.98,"Bradley Resource Centre","5411","Provisions (Not for resale)","30/09/2019"
"Wolverhampton City Council","http://opendatacommunities.org/id/metropolitan-district-council/wolverhampton","GOOGLE  ADS6872419364",-0.1,"Communications & Marketing - General","5968","R4317","30/09/2019"
"Wolverhampton City Council","http://opendatacommunities.org/id/metropolitan-district-council/wolverhampton","123-REG.CO.UK",251.76,"Strategic ICTS (ICT Serv Budget)","4816","Subscriptions","30/09/2019"
"Wolverhampton City Council","http://opendatacommunities.org/id/metropolitan-district-council/wolverhampton","EMX DYNAMICS LTD",220.46,"Strategic ICTS (ICT Serv Budget)","5999","Computing - Consumables","30/09/2019"
"Wolverhampton City Council","http://opendatacommunities.org/id/metropolitan-district-council/wolverhampton","SCREWFIX STAFFORD",22.95,"Technician","5211","R4007","30/09/2019"
"Wolverhampton City Council","http://opendatacommunities.org/id/metropolitan-district-council/wolverhampton","EDMUNDSON ELECTRICAL L",33.55,"Street Lighting Maintenance","5065","Materials","30/09/2019"
"Wolverhampton City Council","http://opendatacommunities.org/id/metropolitan-district-council/wolverhampton","B&M RETAIL",17.99,"LAC Transitions Team","5310","Client Allowances","30/09/2019"
"Wolverhampton City Council","http://opendatacommunities.org/id/metropolitan-district-council/wolverhampton","Trainline.com",72.75,"Court Team","4112","Section 17","30/09/2019"
"Wolverhampton City Council","http://opendatacommunities.org/id/metropolitan-district-council/wolverhampton","PREMIER WOLVERHAMPTON",125,"Emergency Duty Team","7011","Accommodation Costs","30/09/2019"
"Wolverhampton City Council","http://opendatacommunities.org/id/metropolitan-district-council/wolverhampton","AMZNMKTPLACE AMAZON.CO",15.95,"HR Advice","5999","R4000","30/09/2019"
"Wolverhampton City Council","http://opendatacommunities.org/id/metropolitan-district-council/wolverhampton","LOCKERTEK LTD",118.89,"Bert Williams Leisure Centre","5046","Equipment - R & M","30/09/2019"
"Wolverhampton City Council","http://opendatacommunities.org/id/metropolitan-district-council/wolverhampton","ASDA SUPERSTORE",23.87,"Mayoral Expenses","5411","-","30/09/2019"
"Wolverhampton City Council","http://opendatacommunities.org/id/metropolitan-district-council/wolverhampton","ASDA SUPERSTORE",18.68,"EIP Locality 5","5411","Grant Payments","30/09/2019"
"Wolverhampton City Council","http://opendatacommunities.org/id/metropolitan-district-council/wolverhampton","N INVESTMENTS LTD",165.83,"LAC Transitions Team","4225","Client Allowances","30/09/2019"
"Wolverhampton City Council","http://opendatacommunities.org/id/metropolitan-district-council/wolverhampton","Virgin Trains",7.6,"Looked After Team 2","4112","Public Transport","30/09/2019"
"Wolverhampton City Council","http://opendatacommunities.org/id/metropolitan-district-council/wolverhampton","POST OFFICE COUNTER",16.2,"Looked After Team 2","9402","Comms - Postage","30/09/2019"
"Wolverhampton City Council","http://opendatacommunities.org/id/metropolitan-district-council/wolverhampton","WP-CENTRAL TAXIS L",91.5,"Looked After Team 2","4121","Client Transport","30/09/2019"
"Wolverhampton City Council","http://opendatacommunities.org/id/metropolitan-district-council/wolverhampton","PREMIER INN",67.5,"LAC Transitions Team","3811","Accommodation Costs","30/09/2019"
"Wolverhampton City Council","http://opendatacommunities.org/id/metropolitan-district-council/wolverhampton","AMZNMKTPLACE AMAZON.CO",17.42,"Creative Studies Delivery Area","5999","R4400","30/09/2019"
"Wolverhampton City Council","http://opendatacommunities.org/id/metropolitan-district-council/wolverhampton","YOGA MATTERS LTD",34.57,"Creative Studies Delivery Area","5941","R4000","30/09/2019"
"Wolverhampton City Council","http://opendatacommunities.org/id/metropolitan-district-council/wolverhampton","SQUARESPACE INC.",181.17,"Technical Support","7372","Subscriptions","30/09/2019"
"Wolverhampton City Council","http://opendatacommunities.org/id/metropolitan-district-council/wolverhampton","ASDA GROCERIES ONLINE",-0.06,"Ernest Bold Court","5411","Provisions (Not for resale)","30/09/2019"
"Wolverhampton City Council","http://opendatacommunities.org/id/metropolitan-district-council/wolverhampton","ASDA GROCERIES ONLINE",52.49,"Ernest Bold Court","5411","Provisions (Not for resale)","30/09/2019"
"Wolverhampton City Council","http://opendatacommunities.org/id/metropolitan-district-council/wolverhampton","Cross Country Trains",60.75,"Members Expenses","4112","Public Transport","30/09/2019"
"Wolverhampton City Council","http://opendatacommunities.org/id/metropolitan-district-council/wolverhampton","ASDA SUPERSTORE",61,"Ernest Bold Court","5411","R4400","30/09/2019"
"Wolverhampton City Council","http://opendatacommunities.org/id/metropolitan-district-council/wolverhampton","AMZNMktplace",216.65,"Ernest Bold Court","5999","R4000","30/09/2019"
"Wolverhampton City Council","http://opendatacommunities.org/id/metropolitan-district-council/wolverhampton","ROOKERY Sainsburys Ba",200,"Duke Street Bungalows","6011","Provisions (Not for resale)","30/09/2019"
"Wolverhampton City Council","http://opendatacommunities.org/id/metropolitan-district-council/wolverhampton","E C STRAITON",147.43,"Northicote Farm","0742","R4400","30/09/2019"
"Wolverhampton City Council","http://opendatacommunities.org/id/metropolitan-district-council/wolverhampton","CITY AND GUILDS OF LON",44,"Northicote Farm","8398","R4400","30/09/2019"
"Wolverhampton City Council","http://opendatacommunities.org/id/metropolitan-district-council/wolverhampton","PAYPAL  HIGHLANDIND",20.59,"Northicote Farm","5311","R4000","30/09/2019"
"Wolverhampton City Council","http://opendatacommunities.org/id/metropolitan-district-council/wolverhampton","BRIGGS EQUIPMENT U",13.2,"Cleaning of Buildings - General","5039","-","27/09/2019"
"Wolverhampton City Council","http://opendatacommunities.org/id/metropolitan-district-council/wolverhampton","ICELAND",0,"Carers Support","5411","Catering","27/09/2019"
"Wolverhampton City Council","http://opendatacommunities.org/id/metropolitan-district-council/wolverhampton","Virgin Trains",243.6,"Commercial Services","4112","Services - Fees and Charges","27/09/2019"
"Wolverhampton City Council","http://opendatacommunities.org/id/metropolitan-district-council/wolverhampton","Trainline",41.21,"CIN/CP Social Work Unit - Area 4","4112","Public Transport","27/09/2019"
"Wolverhampton City Council","http://opendatacommunities.org/id/metropolitan-district-council/wolverhampton","ARGOS RETAIL GROUP",24.17,"Ernest Bold Court","5310","Fixtures and Fittings - Purchases","27/09/2019"
"Wolverhampton City Council","http://opendatacommunities.org/id/metropolitan-district-council/wolverhampton","AMZNMktplace",4.96,"Ernest Bold Court","5999","Fixtures and Fittings - Purchases","27/09/2019"
"Wolverhampton City Council","http://opendatacommunities.org/id/metropolitan-district-council/wolverhampton","AMZNMKTPLACE AMAZON.CO",139.77,"Music Support Team","5999","Equipment - R & M","27/09/2019"
"Wolverhampton City Council","http://opendatacommunities.org/id/metropolitan-district-council/wolverhampton","AMZNMKTPLACE AMAZON.CO",79.17,"Strategic ICTS (ICT Serv Budget)","5999","Computing - Consumables","27/09/2019"
"Wolverhampton City Council","http://opendatacommunities.org/id/metropolitan-district-council/wolverhampton","SPAR",116.16,"Towers Outdoor Education Centre","5411","Provisions (Not for resale)","27/09/2019"
"Wolverhampton City Council","http://opendatacommunities.org/id/metropolitan-district-council/wolverhampton","ENVATOMARKET49372341",25.94,"Communications & Marketing - General","5815","R4317","27/09/2019"
"Wolverhampton City Council","http://opendatacommunities.org/id/metropolitan-district-council/wolverhampton","Amazon.co.uk",-12.58,"Archives","5969","Books","27/09/2019"
"Wolverhampton City Council","http://opendatacommunities.org/id/metropolitan-district-council/wolverhampton","Trainline.com",99.77,"Keith Piper","4112","Public Transport","27/09/2019"
"Wolverhampton City Council","http://opendatacommunities.org/id/metropolitan-district-council/wolverhampton","ARGOS LTD",79.99,"Key to Inspiration","5310","Equipment - Health and Safety","27/09/2019"
"Wolverhampton City Council","http://opendatacommunities.org/id/metropolitan-district-council/wolverhampton","ARGOS LTD",14.95,"Key to Inspiration","5310","Educ Trips, Holidays, Outings, Activity","27/09/2019"
"Wolverhampton City Council","http://opendatacommunities.org/id/metropolitan-district-council/wolverhampton","ROYAL CARPETS",416.67,"LAC Transitions Team","5713","Client Allowances","27/09/2019"
"Wolverhampton City Council","http://opendatacommunities.org/id/metropolitan-district-council/wolverhampton","HIGHSTREETVOUCHERS",504.25,"IMPACT","8641","R4000","27/09/2019"
"Wolverhampton City Council","http://opendatacommunities.org/id/metropolitan-district-council/wolverhampton","NATWEST BANK",250,"NRPF","6011","No Recourse to Public Funds","27/09/2019"
"Wolverhampton City Council","http://opendatacommunities.org/id/metropolitan-district-council/wolverhampton","PAYPAL  SUPERSTARST",87,"Brass Bands","5331","Equipment - Health and Safety","27/09/2019"
"Wolverhampton City Council","http://opendatacommunities.org/id/metropolitan-district-council/wolverhampton","Amazon.co.uk MA4RA6YP4",14.82,"LAC Transitions Team","5969","Client Allowances","27/09/2019"
"Wolverhampton City Council","http://opendatacommunities.org/id/metropolitan-district-council/wolverhampton","Virgin Trains",195,"Fostering Team & Allowances","4112","Public Transport","27/09/2019"
"Wolverhampton City Council","http://opendatacommunities.org/id/metropolitan-district-council/wolverhampton","TVLICENSING.CO.UK",128.75,"Aldersley Leisure Village","7392","Services - General Licences","27/09/2019"
"Wolverhampton City Council","http://opendatacommunities.org/id/metropolitan-district-council/wolverhampton","AMZNMktplace",33.29,"Bert Williams Leisure Centre","5999","R4000","27/09/2019"
"Wolverhampton City Council","http://opendatacommunities.org/id/metropolitan-district-council/wolverhampton","Trainline",15.31,"Service Director Older People","4112","Public Transport","27/09/2019"
"Wolverhampton City Council","http://opendatacommunities.org/id/metropolitan-district-council/wolverhampton","ROYAL CARPETS",375,"LAC Transitions Team","5713","Client Allowances","27/09/2019"
"Wolverhampton City Council","http://opendatacommunities.org/id/metropolitan-district-council/wolverhampton","W HAMPTON1797",49.97,"Cleaning of Buildings - General","5211","-","27/09/2019"
"Wolverhampton City Council","http://opendatacommunities.org/id/metropolitan-district-council/wolverhampton","GOOGLE  ADS9680351324",3726.05,"Communications & Marketing - General","5968","R4317","26/09/2019"
"Wolverhampton City Council","http://opendatacommunities.org/id/metropolitan-district-council/wolverhampton","GOOGLE  ADS9680351324",1000,"Communications & Marketing - General","5968","R4317","26/09/2019"
"Wolverhampton City Council","http://opendatacommunities.org/id/metropolitan-district-council/wolverhampton","ASDA GROCERIES ONLINE",0.41,"Bradley Resource Centre","5411","Provisions (Not for resale)","26/09/2019"
"Wolverhampton City Council","http://opendatacommunities.org/id/metropolitan-district-council/wolverhampton","ASDA GROCERIES ONLINE",133.76,"Bradley Resource Centre","5411","Provisions (Resale)","26/09/2019"
"Wolverhampton City Council","http://opendatacommunities.org/id/metropolitan-district-council/wolverhampton","Amazon.co.uk MA1PM9WP4",17.5,"Regional Adoption Agency","5969","Provisions (Not for resale)","26/09/2019"
"Wolverhampton City Council","http://opendatacommunities.org/id/metropolitan-district-council/wolverhampton","Virgin Trains",350,"Regional Adoption Agency","4112","Public Transport","26/09/2019"
"Wolverhampton City Council","http://opendatacommunities.org/id/metropolitan-district-council/wolverhampton","BLOXWICH NORTH SST",4.25,"Economic Development","4112","Public Transport","26/09/2019"
"Wolverhampton City Council","http://opendatacommunities.org/id/metropolitan-district-council/wolverhampton","CARESHOP",92.72,"Ernest Bold Court","5999","Materials","26/09/2019"
"Wolverhampton City Council","http://opendatacommunities.org/id/metropolitan-district-council/wolverhampton","INTRAMARK",147.5,"Mayoral Expenses","5999","Clothing / Uniforms","26/09/2019"
"Wolverhampton City Council","http://opendatacommunities.org/id/metropolitan-district-council/wolverhampton","BLOOMS MENSWEAR",62.46,"Mayoral Expenses","5611","Equipment - R & M","26/09/2019"
"Wolverhampton City Council","http://opendatacommunities.org/id/metropolitan-district-council/wolverhampton","THE MOUNT HOTEL",103.25,"Managing Director","7011","Subsistence","26/09/2019"
"Wolverhampton City Council","http://opendatacommunities.org/id/metropolitan-district-council/wolverhampton","ITUNES.COM/BILL",9.99,"Managing Director","5735","Computing - Purchase of Software","26/09/2019"
"Wolverhampton City Council","http://opendatacommunities.org/id/metropolitan-district-council/wolverhampton","CardtronicsUK",60,"Intensive Family Support Team","6011","Direct Work With Children","26/09/2019"
"Wolverhampton City Council","http://opendatacommunities.org/id/metropolitan-district-council/wolverhampton","Virgin Trains",34.75,"Looked After Team 2","4112","Client Transport","26/09/2019"
"Wolverhampton City Council","http://opendatacommunities.org/id/metropolitan-district-council/wolverhampton","ARVATO FINANCIAL SOLUT",37.25,"LAC Transitions Team","7399","Client Allowances","26/09/2019"
"Wolverhampton City Council","http://opendatacommunities.org/id/metropolitan-district-council/wolverhampton","HUGHES",416.67,"LAC Transitions Team","5732","Client Allowances","26/09/2019"
"Wolverhampton City Council","http://opendatacommunities.org/id/metropolitan-district-council/wolverhampton","HUGHES",415.02,"LAC Transitions Team","5732","Client Allowances","26/09/2019"
"Wolverhampton City Council","http://opendatacommunities.org/id/metropolitan-district-council/wolverhampton","CUMMINGS BROTHERS LOCK",9,"Cleaning of Buildings - General","7399","-","26/09/2019"
"Wolverhampton City Council","http://opendatacommunities.org/id/metropolitan-district-council/wolverhampton","AMZNMktplace",37.87,"SEN Sensory Inclusion","5999","R4000","26/09/2019"
"Wolverhampton City Council","http://opendatacommunities.org/id/metropolitan-district-council/wolverhampton","Hotel on Booking.com C",30,"Members Expenses","7011","Accommodation Costs","26/09/2019"
"Wolverhampton City Council","http://opendatacommunities.org/id/metropolitan-district-council/wolverhampton","Complete Food Safety",19.95,"Food and Health & Safety","5999","R4000","26/09/2019"
"Wolverhampton City Council","http://opendatacommunities.org/id/metropolitan-district-council/wolverhampton","FOOD SAFETY DIRECT",36.74,"Food and Health & Safety","5169","R4000","26/09/2019"
"Wolverhampton City Council","http://opendatacommunities.org/id/metropolitan-district-council/wolverhampton","PAYPAL  JAALLISON",42,"Financial Assessments","8999","Training Expenses","26/09/2019"
"Wolverhampton City Council","http://opendatacommunities.org/id/metropolitan-district-council/wolverhampton","WWW.BIRMINGHAM-REP.CO.",90.7,"Upper Pendeford Farm Childrens Home","7922","Educ Trips, Holidays, Outings, Activity","26/09/2019"
"Wolverhampton City Council","http://opendatacommunities.org/id/metropolitan-district-council/wolverhampton","POST OFFICE COUNTER",175,"LAC Education Team (LACE)","9402","Comms - Postage","26/09/2019"
"Wolverhampton City Council","http://opendatacommunities.org/id/metropolitan-district-council/wolverhampton","POST OFFICE COUNTER",116.67,"LAC Education Team (LACE)","9402","Comms - Postage","26/09/2019"
"Wolverhampton City Council","http://opendatacommunities.org/id/metropolitan-district-council/wolverhampton","AMZNMktplace",27.76,"Community Enablement","5999","Materials","26/09/2019"
"Wolverhampton City Council","http://opendatacommunities.org/id/metropolitan-district-council/wolverhampton","Creative Cloud Indiv",301.84,"Landscape","5734","Computing - Purchase of Software","26/09/2019"
"Wolverhampton City Council","http://opendatacommunities.org/id/metropolitan-district-council/wolverhampton","Virgin Trains",80.05,"Private Sector Housing","4112","Services - Fees and Charges","25/09/2019"
"Wolverhampton City Council","http://opendatacommunities.org/id/metropolitan-district-council/wolverhampton","B&M RETAIL",50.77,"LAC Transitions Team","5310","Client Allowances","25/09/2019"
"Wolverhampton City Council","http://opendatacommunities.org/id/metropolitan-district-council/wolverhampton","Virgin Trains",223,"Workforce Development","4112","Training Expenses","25/09/2019"
"Wolverhampton City Council","http://opendatacommunities.org/id/metropolitan-district-council/wolverhampton","MHFA ENGLAND CIC LTD",805,"Workforce Development","8398","Training Expenses","25/09/2019"
"Wolverhampton City Council","http://opendatacommunities.org/id/metropolitan-district-council/wolverhampton","000002200500000",250,"Mental Health Assessment & Care Mgmt","6011","Financial Assistance In Exceptional Circ","25/09/2019"
"Wolverhampton City Council","http://opendatacommunities.org/id/metropolitan-district-council/wolverhampton","Jessops",106.1,"Landscape","5946","R4000","25/09/2019"
"Wolverhampton City Council","http://opendatacommunities.org/id/metropolitan-district-council/wolverhampton","NAMESCO",6.99,"Communications & Marketing - General","4816","R4317","25/09/2019"
"Wolverhampton City Council","http://opendatacommunities.org/id/metropolitan-district-council/wolverhampton","NAMESCO",23.96,"Pupil Premium","4816","R4317","25/09/2019"
"Wolverhampton City Council","http://opendatacommunities.org/id/metropolitan-district-council/wolverhampton","LOYD 37 CHURCH STREET",350,"EIP Locality 8","6011","Grant Payments","25/09/2019"
"Wolverhampton City Council","http://opendatacommunities.org/id/metropolitan-district-council/wolverhampton","dbscheckonline",100.8,"IMPACT","7311","R4000","25/09/2019"
"Wolverhampton City Council","http://opendatacommunities.org/id/metropolitan-district-council/wolverhampton","STAFFORDSHIRE COUNTY C",35,"IMPACT","9399","R4000","25/09/2019"
"Wolverhampton City Council","http://opendatacommunities.org/id/metropolitan-district-council/wolverhampton","GENERAL OFFICE",0,"SEN Special Education Admin","8062","R5101","25/09/2019"
"Wolverhampton City Council","http://opendatacommunities.org/id/metropolitan-district-council/wolverhampton","EDMUNDSON ELECTRICAL L",12.92,"Street Lighting Maintenance","5065","Materials","25/09/2019"
"Wolverhampton City Council","http://opendatacommunities.org/id/metropolitan-district-council/wolverhampton","WM MORRISON FOOD.COM",115.56,"Discretionary Fund","5411","R4007","25/09/2019"
"Wolverhampton City Council","http://opendatacommunities.org/id/metropolitan-district-council/wolverhampton","PRIMARK",2.08,"LAC Transitions Team","5651","Client Allowances","25/09/2019"
"Wolverhampton City Council","http://opendatacommunities.org/id/metropolitan-district-council/wolverhampton","NATWEST BANK",200,"Court Team","6011","Section 17","25/09/2019"
"Wolverhampton City Council","http://opendatacommunities.org/id/metropolitan-district-council/wolverhampton","CURRYS ONLINE",149.17,"LAC Transitions Team","5732","Client Allowances","25/09/2019"
"Wolverhampton City Council","http://opendatacommunities.org/id/metropolitan-district-council/wolverhampton","ENJOY WOLVERHAMPTON",390,"Corporate Parenting","5399","Direct Work With Children","25/09/2019"
"Wolverhampton City Council","http://opendatacommunities.org/id/metropolitan-district-council/wolverhampton","ASDA SUPERSTORE",35.52,"Power2 Team","5411","Provisions (Not for resale)","25/09/2019"
"Wolverhampton City Council","http://opendatacommunities.org/id/metropolitan-district-council/wolverhampton","Central Taxis Limited",-8.1,"LAC Transitions Team","4121","Client Allowances","25/09/2019"
"Wolverhampton City Council","http://opendatacommunities.org/id/metropolitan-district-council/wolverhampton","POSTURITE LTD",28.02,"LAC Transitions Team","7399","Client Allowances","25/09/2019"
"Wolverhampton City Council","http://opendatacommunities.org/id/metropolitan-district-council/wolverhampton","PP FAMILYLINKS",9,"Intensive Family Support Team","8398","Books","25/09/2019"
"Wolverhampton City Council","http://opendatacommunities.org/id/metropolitan-district-council/wolverhampton","ASDA GROCERIES ONLINE",0.97,"Upper Pendeford Farm Childrens Home","5411","Provisions (Not for resale)","25/09/2019"
"Wolverhampton City Council","http://opendatacommunities.org/id/metropolitan-district-council/wolverhampton","ASDA GROCERIES ONLINE",237.75,"Upper Pendeford Farm Childrens Home","5411","Provisions (Not for resale)","25/09/2019"
"Wolverhampton City Council","http://opendatacommunities.org/id/metropolitan-district-council/wolverhampton","Virgin Trains",11.1,"Looked After Team 2","4112","Public Transport","25/09/2019"
"Wolverhampton City Council","http://opendatacommunities.org/id/metropolitan-district-council/wolverhampton","HILTON",165,"Children & Young People Support Costs","3504","Accommodation Costs","25/09/2019"
"Wolverhampton City Council","http://opendatacommunities.org/id/metropolitan-district-council/wolverhampton","HILTON",137.5,"Children & Young People Support Costs","3504","Accommodation Costs","25/09/2019"
"Wolverhampton City Council","http://opendatacommunities.org/id/metropolitan-district-council/wolverhampton","HILTON",137.5,"Service Director Adults","3504","Accommodation Costs","25/09/2019"
"Wolverhampton City Council","http://opendatacommunities.org/id/metropolitan-district-council/wolverhampton","ASDA SUPERSTORE",7.5,"LAC Transitions Team","5411","Client Allowances","25/09/2019"
"Wolverhampton City Council","http://opendatacommunities.org/id/metropolitan-district-council/wolverhampton","POST OFFICE COUNTER",7.4,"Looked After Team 2","9402","Comms - Postage","25/09/2019"
"Wolverhampton City Council","http://opendatacommunities.org/id/metropolitan-district-council/wolverhampton","WWW.IKEA.COM",149,"LAC Team","5712","Financial Assistance In Exceptional Circ","25/09/2019"
"Wolverhampton City Council","http://opendatacommunities.org/id/metropolitan-district-council/wolverhampton","ASDA GROCERIES ONLINE",5,"Ernest Bold Court","5411","Catering","25/09/2019"
"Wolverhampton City Council","http://opendatacommunities.org/id/metropolitan-district-council/wolverhampton","AMZNMktplace",20.14,"WV Active Marketing","5999","R4317","24/09/2019"
"Wolverhampton City Council","http://opendatacommunities.org/id/metropolitan-district-council/wolverhampton","MYPROTEIN.COM",56.48,"WV Active Marketing","5399","R4317","24/09/2019"
"Wolverhampton City Council","http://opendatacommunities.org/id/metropolitan-district-council/wolverhampton","LOYD 37 CHURCH STREET",20,"EIP Locality 8","6011","Grant Payments","24/09/2019"
"Wolverhampton City Council","http://opendatacommunities.org/id/metropolitan-district-council/wolverhampton","ASDA GROCERIES ONLINE",-1.15,"Bradley Resource Centre","5411","Provisions (Not for resale)","24/09/2019"
"Wolverhampton City Council","http://opendatacommunities.org/id/metropolitan-district-council/wolverhampton","ASDA GROCERIES ONLINE",133.83,"Bradley Resource Centre","5411","Provisions (Not for resale)","24/09/2019"
"Wolverhampton City Council","http://opendatacommunities.org/id/metropolitan-district-council/wolverhampton","WOLVERHAMPTON T/O",182,"IMPACT","4112","Public Transport","24/09/2019"
"Wolverhampton City Council","http://opendatacommunities.org/id/metropolitan-district-council/wolverhampton","Amazon.co.uk",-75.22,"School Improvement","5969","R4000","24/09/2019"
"Wolverhampton City Council","http://opendatacommunities.org/id/metropolitan-district-council/wolverhampton","Amazon.co.uk MA8Q91U44",75.22,"School Improvement","5969","R4000","24/09/2019"
"Wolverhampton City Council","http://opendatacommunities.org/id/metropolitan-district-council/wolverhampton","EDMUNDSON ELECTRICAL L",68.78,"Street Lighting Maintenance","5065","R4007","24/09/2019"
"Wolverhampton City Council","http://opendatacommunities.org/id/metropolitan-district-council/wolverhampton","POST OFFICE COUNTER",11,"Adult Services - West","9402","Comms - Postage","24/09/2019"
"Wolverhampton City Council","http://opendatacommunities.org/id/metropolitan-district-council/wolverhampton","FOOTASYLUM LTD",49.99,"LAC Transitions Team","5941","Client Allowances","24/09/2019"
"Wolverhampton City Council","http://opendatacommunities.org/id/metropolitan-district-council/wolverhampton","YOURS CLOTHING",102.51,"LAC Transitions Team","5621","Client Allowances","24/09/2019"
"Wolverhampton City Council","http://opendatacommunities.org/id/metropolitan-district-council/wolverhampton","CITY OF WOLVERHAMPTON",16,"Court Team","9399","Section 17","24/09/2019"
"Wolverhampton City Council","http://opendatacommunities.org/id/metropolitan-district-council/wolverhampton","ASDA SUPERSTORE",2.18,"LAC Transitions Team","5411","Client Allowances","24/09/2019"
"Wolverhampton City Council","http://opendatacommunities.org/id/metropolitan-district-council/wolverhampton","CUMMINGS BROTHERS LOCK",33.33,"Mayoral Expenses","7399","Equipment - R & M","24/09/2019"
"Wolverhampton City Council","http://opendatacommunities.org/id/metropolitan-district-council/wolverhampton","GEN REGISTER OFFICE",25,"LAC Team","9399","Financial Assistance In Exceptional Circ","24/09/2019"
"Wolverhampton City Council","http://opendatacommunities.org/id/metropolitan-district-council/wolverhampton","Virgin Trains",94.45,"Looked After Team 2","4112","Client Transport","24/09/2019"
"Wolverhampton City Council","http://opendatacommunities.org/id/metropolitan-district-council/wolverhampton","WP-CENTRAL TAXIS L",76,"LAC Team","4121","Client Transport","24/09/2019"
"Wolverhampton City Council","http://opendatacommunities.org/id/metropolitan-district-council/wolverhampton","ASDA GROCERIES ONLINE",-1.5,"Creative Studies Delivery Area","5411","Provisions (Not for resale)","24/09/2019"
"Wolverhampton City Council","http://opendatacommunities.org/id/metropolitan-district-council/wolverhampton","ASDA GROCERIES ONLINE",38.2,"Creative Studies Delivery Area","5411","Provisions (Not for resale)","24/09/2019"
"Wolverhampton City Council","http://opendatacommunities.org/id/metropolitan-district-council/wolverhampton","FACEBK GP624MJC22",199.99,"Business Support Services","7311","Marketing \ Non-staff advertising","24/09/2019"
"Wolverhampton City Council","http://opendatacommunities.org/id/metropolitan-district-council/wolverhampton","Trainline",45.79,"Research & Development","4112","Public Transport","24/09/2019"
"Wolverhampton City Council","http://opendatacommunities.org/id/metropolitan-district-council/wolverhampton","WIX.COM",26.75,"Technical Support","5968","Subscriptions","24/09/2019"
"Wolverhampton City Council","http://opendatacommunities.org/id/metropolitan-district-council/wolverhampton","WIX.COM",32.75,"Technical Support","5968","Subscriptions","24/09/2019"
"Wolverhampton City Council","http://opendatacommunities.org/id/metropolitan-district-council/wolverhampton","WIX.COM",41.57,"Technical Support","5968","Subscriptions","24/09/2019"
"Wolverhampton City Council","http://opendatacommunities.org/id/metropolitan-district-council/wolverhampton","WIX.COM",42.57,"Technical Support","5968","Subscriptions","24/09/2019"
"Wolverhampton City Council","http://opendatacommunities.org/id/metropolitan-district-council/wolverhampton","WIX.COM",12.74,"Technical Support","5968","Subscriptions","24/09/2019"
"Wolverhampton City Council","http://opendatacommunities.org/id/metropolitan-district-council/wolverhampton","WIX.COM",24.75,"Technical Support","5968","Subscriptions","24/09/2019"
"Wolverhampton City Council","http://opendatacommunities.org/id/metropolitan-district-council/wolverhampton","WIX.COM",13.75,"Technical Support","5968","Subscriptions","24/09/2019"
"Wolverhampton City Council","http://opendatacommunities.org/id/metropolitan-district-council/wolverhampton","WIX.COM",33.74,"Technical Support","5968","Subscriptions","24/09/2019"
"Wolverhampton City Council","http://opendatacommunities.org/id/metropolitan-district-council/wolverhampton","WIX.COM",37.76,"Technical Support","5968","Subscriptions","24/09/2019"
"Wolverhampton City Council","http://opendatacommunities.org/id/metropolitan-district-council/wolverhampton","WIX.COM",17.74,"Technical Support","5968","Subscriptions","24/09/2019"
"Wolverhampton City Council","http://opendatacommunities.org/id/metropolitan-district-council/wolverhampton","Wix.com",5.75,"Technical Support","5817","Subscriptions","24/09/2019"
"Wolverhampton City Council","http://opendatacommunities.org/id/metropolitan-district-council/wolverhampton","Wix.com",11.74,"Technical Support","5817","Subscriptions","24/09/2019"
"Wolverhampton City Council","http://opendatacommunities.org/id/metropolitan-district-council/wolverhampton","Wix.com",30.57,"Technical Support","5817","Subscriptions","24/09/2019"
"Wolverhampton City Council","http://opendatacommunities.org/id/metropolitan-district-council/wolverhampton","Wix.com",11.74,"Technical Support","5817","Subscriptions","24/09/2019"
"Wolverhampton City Council","http://opendatacommunities.org/id/metropolitan-district-council/wolverhampton","Wix.com",33.75,"Technical Support","5817","Subscriptions","24/09/2019"
"Wolverhampton City Council","http://opendatacommunities.org/id/metropolitan-district-council/wolverhampton","Wix.com",41.57,"Technical Support","5817","Subscriptions","24/09/2019"
"Wolverhampton City Council","http://opendatacommunities.org/id/metropolitan-district-council/wolverhampton","ASDA GROCERIES ONLINE",50.1,"Ernest Bold Court","5411","Provisions (Not for resale)","24/09/2019"
"Wolverhampton City Council","http://opendatacommunities.org/id/metropolitan-district-council/wolverhampton","ROYAL CARPETS",284.17,"LAC Transitions Team","5713","Client Allowances","24/09/2019"
"Wolverhampton City Council","http://opendatacommunities.org/id/metropolitan-district-council/wolverhampton","NATWEST BANK",200,"NRPF","6011","No Recourse to Public Funds","24/09/2019"
"Wolverhampton City Council","http://opendatacommunities.org/id/metropolitan-district-council/wolverhampton","AMZNMktplace",62.6,"Strategic ICTS (ICT Serv Budget)","5999","Computing - Consumables","23/09/2019"
"Wolverhampton City Council","http://opendatacommunities.org/id/metropolitan-district-council/wolverhampton","AMZNMktplace",3624.9,"Strategic ICTS (ICT Serv Budget)","5999","Comms - Mobile Telephones","23/09/2019"
"Wolverhampton City Council","http://opendatacommunities.org/id/metropolitan-district-council/wolverhampton","VIRGIN EXPERIENCE DAYS",79,"Private Hire Vehicles","5499","Services - Supplies & Services to users","23/09/2019"
"Wolverhampton City Council","http://opendatacommunities.org/id/metropolitan-district-council/wolverhampton","VIRGIN EXPERIENCE DAYS",79,"Private Hire Vehicles","5499","Services - Supplies & Services to users","23/09/2019"
"Wolverhampton City Council","http://opendatacommunities.org/id/metropolitan-district-council/wolverhampton","VIRGIN EXPERIENCE DAYS",79,"Private Hire Vehicles","5499","Services - Supplies & Services to users","23/09/2019"
"Wolverhampton City Council","http://opendatacommunities.org/id/metropolitan-district-council/wolverhampton","VIRGIN EXPERIENCE DAYS",79,"Private Hire Vehicles","5499","Services - Supplies & Services to users","23/09/2019"
"Wolverhampton City Council","http://opendatacommunities.org/id/metropolitan-district-council/wolverhampton","VIRGIN EXPERIENCE DAYS",79,"Private Hire Vehicles","5499","Services - Supplies & Services to users","23/09/2019"
"Wolverhampton City Council","http://opendatacommunities.org/id/metropolitan-district-council/wolverhampton","VIRGIN EXPERIENCE DAYS",79,"Private Hire Vehicles","5499","Services - Supplies & Services to users","23/09/2019"
"Wolverhampton City Council","http://opendatacommunities.org/id/metropolitan-district-council/wolverhampton","VIRGIN EXPERIENCE DAYS",79,"Private Hire Vehicles","5499","Services - Supplies & Services to users","23/09/2019"
"Wolverhampton City Council","http://opendatacommunities.org/id/metropolitan-district-council/wolverhampton","VIRGIN EXPERIENCE DAYS",79,"Private Hire Vehicles","5499","Services - Supplies & Services to users","23/09/2019"
"Wolverhampton City Council","http://opendatacommunities.org/id/metropolitan-district-council/wolverhampton","VIRGIN EXPERIENCE DAYS",79,"Private Hire Vehicles","5499","Services - Supplies & Services to users","23/09/2019"
"Wolverhampton City Council","http://opendatacommunities.org/id/metropolitan-district-council/wolverhampton","VIRGIN EXPERIENCE DAYS",67.15,"Private Hire Vehicles","5499","Services - Supplies & Services to users","23/09/2019"
"Wolverhampton City Council","http://opendatacommunities.org/id/metropolitan-district-council/wolverhampton","VIRGIN EXPERIENCE DAYS",79,"Private Hire Vehicles","5499","Services - Supplies & Services to users","23/09/2019"
"Wolverhampton City Council","http://opendatacommunities.org/id/metropolitan-district-council/wolverhampton","CASINO 36",150,"Private Hire Vehicles","5812","Catering","23/09/2019"
"Wolverhampton City Council","http://opendatacommunities.org/id/metropolitan-district-council/wolverhampton","FACEBK TQPHTPJAR2",500,"Communications & Marketing - General","7311","R4317","23/09/2019"
"Wolverhampton City Council","http://opendatacommunities.org/id/metropolitan-district-council/wolverhampton","GINGER RAY LTD",23.28,"WV Active Marketing","5999","R4317","23/09/2019"
"Wolverhampton City Council","http://opendatacommunities.org/id/metropolitan-district-council/wolverhampton","Trainline",126.68,"Research & Development","4112","Public Transport","23/09/2019"
"Wolverhampton City Council","http://opendatacommunities.org/id/metropolitan-district-council/wolverhampton","Trainline",329.87,"Research & Development","4112","Public Transport","23/09/2019"
"Wolverhampton City Council","http://opendatacommunities.org/id/metropolitan-district-council/wolverhampton","ASDA GROCERIES ONLINE",0.01,"Key to Inspiration","5411","Catering","23/09/2019"
"Wolverhampton City Council","http://opendatacommunities.org/id/metropolitan-district-council/wolverhampton","ASDA GROCERIES ONLINE",137.53,"Key to Inspiration","5411","Catering","23/09/2019"
"Wolverhampton City Council","http://opendatacommunities.org/id/metropolitan-district-council/wolverhampton","ASDA GROCERIES ONLINE",0.39,"Bradley Resource Centre","5411","Provisions (Not for resale)","23/09/2019"
"Wolverhampton City Council","http://opendatacommunities.org/id/metropolitan-district-council/wolverhampton","ASDA GROCERIES ONLINE",161.14,"Bradley Resource Centre","5411","Provisions (Not for resale)","23/09/2019"
"Wolverhampton City Council","http://opendatacommunities.org/id/metropolitan-district-council/wolverhampton","Trainline",120.57,"Strategic ICTS (ICT Serv Budget)","4112","Public Transport","23/09/2019"
"Wolverhampton City Council","http://opendatacommunities.org/id/metropolitan-district-council/wolverhampton","WEBFLOW.COM",346.9,"Strategic ICTS (ICT Serv Budget)","7372","Subscriptions","23/09/2019"
"Wolverhampton City Council","http://opendatacommunities.org/id/metropolitan-district-council/wolverhampton","THE RED HOUSE",56.96,"IMPACT","5691","R4000","23/09/2019"
"Wolverhampton City Council","http://opendatacommunities.org/id/metropolitan-district-council/wolverhampton","Trainline",40.19,"Professional Development Programme fund","4112","Public Transport","23/09/2019"
"Wolverhampton City Council","http://opendatacommunities.org/id/metropolitan-district-council/wolverhampton","EDMUNDSON ELECTRICAL L",30.01,"Street Lighting Maintenance","5065","Materials","23/09/2019"
"Wolverhampton City Council","http://opendatacommunities.org/id/metropolitan-district-council/wolverhampton","AMZNMKTPLACE AMAZON.CO",49.99,"Adult Services - West","5999","R4000","23/09/2019"
"Wolverhampton City Council","http://opendatacommunities.org/id/metropolitan-district-council/wolverhampton","WWW.ARGOS.CO.UK",271.62,"LAC Transitions Team","5310","Independant Living Allowance","23/09/2019"
"Wolverhampton City Council","http://opendatacommunities.org/id/metropolitan-district-council/wolverhampton","WWW.ARGOS.CO.UK",12.45,"LAC Transitions Team","5310","Independant Living Allowance","23/09/2019"
"Wolverhampton City Council","http://opendatacommunities.org/id/metropolitan-district-council/wolverhampton","ARGOS RETAIL GROUP",16.66,"LAC Transitions Team","5310","Independant Living Allowance","23/09/2019"
"Wolverhampton City Council","http://opendatacommunities.org/id/metropolitan-district-council/wolverhampton","ALDI 78 772",3.63,"LAC Transitions Team","5411","Client Allowances","23/09/2019"
"Wolverhampton City Council","http://opendatacommunities.org/id/metropolitan-district-council/wolverhampton","ALDI 73 772",4.9,"LAC Transitions Team","5411","Client Allowances","23/09/2019"
"Wolverhampton City Council","http://opendatacommunities.org/id/metropolitan-district-council/wolverhampton","NATWEST BANK",200,"NRPF","6011","No Recourse to Public Funds","23/09/2019"
"Wolverhampton City Council","http://opendatacommunities.org/id/metropolitan-district-council/wolverhampton","Amazon.co.uk MA2I942J4",24.99,"Regional Adoption Agency","5969","Equipment - Health and Safety","23/09/2019"
"Wolverhampton City Council","http://opendatacommunities.org/id/metropolitan-district-council/wolverhampton","Amazon Prime MA1SI97K4",6.66,"Bert Williams Leisure Centre","5968","R4000","23/09/2019"
"Wolverhampton City Council","http://opendatacommunities.org/id/metropolitan-district-council/wolverhampton","WP-CENTRAL TAXIS L",81.9,"Looked After Team 2","4121","Client Transport","23/09/2019"
"Wolverhampton City Council","http://opendatacommunities.org/id/metropolitan-district-council/wolverhampton","Central Taxis Limited",8.1,"LAC Transitions Team","4121","Client Allowances","23/09/2019"
"Wolverhampton City Council","http://opendatacommunities.org/id/metropolitan-district-council/wolverhampton","Central Taxis Limited",8.1,"LAC Transitions Team","4121","Client Allowances","23/09/2019"
"Wolverhampton City Council","http://opendatacommunities.org/id/metropolitan-district-council/wolverhampton","Trainline.com",7.17,"Service Director Older People","4112","Public Transport","23/09/2019"
"Wolverhampton City Council","http://opendatacommunities.org/id/metropolitan-district-council/wolverhampton","WWW.WOLVERHAMPTON.GOV.",67.83,"LAC Transitions Team","9399","Client Allowances","23/09/2019"
"Wolverhampton City Council","http://opendatacommunities.org/id/metropolitan-district-council/wolverhampton","Wix.com",-3,"Technical Support","5817","Subscriptions","23/09/2019"
"Wolverhampton City Council","http://opendatacommunities.org/id/metropolitan-district-council/wolverhampton","Wix.com",-3,"Technical Support","5817","Subscriptions","23/09/2019"
"Wolverhampton City Council","http://opendatacommunities.org/id/metropolitan-district-council/wolverhampton","WIX.COM",46.57,"Technical Support","5968","Subscriptions","23/09/2019"
"Wolverhampton City Council","http://opendatacommunities.org/id/metropolitan-district-council/wolverhampton","ASDA GROCERIES ONLINE",-0.3,"Ernest Bold Court","5411","Provisions (Not for resale)","23/09/2019"
"Wolverhampton City Council","http://opendatacommunities.org/id/metropolitan-district-council/wolverhampton","ASDA GROCERIES ONLINE",53.83,"Ernest Bold Court","5411","Provisions (Not for resale)","23/09/2019"
"Wolverhampton City Council","http://opendatacommunities.org/id/metropolitan-district-council/wolverhampton","WWW.WMCA.CO.UK",675,"Travel Scratch Cards & Rail Warrants","4112","Public Transport","23/09/2019"
"Wolverhampton City Council","http://opendatacommunities.org/id/metropolitan-district-council/wolverhampton","AMZNMKTPLACE AMAZON.CO",80.75,"Fleet Management","5999","Protective Clothing","23/09/2019"
"Wolverhampton City Council","http://opendatacommunities.org/id/metropolitan-district-council/wolverhampton","AMZ AntomDirect",-99.96,"Parks - Ranger Service","5999","R4000","23/09/2019"
"Wolverhampton City Council","http://opendatacommunities.org/id/metropolitan-district-council/wolverhampton","AMZNMKTPLACE AMAZON.CO",9.98,"Parks - Ranger Service","5999","Computing - Consumables","23/09/2019"
"Wolverhampton City Council","http://opendatacommunities.org/id/metropolitan-district-council/wolverhampton","POST OFFICE COUNTER",14.64,"Parks - Management and Admin","9402","R4000","23/09/2019"
"Wolverhampton City Council","http://opendatacommunities.org/id/metropolitan-district-council/wolverhampton","Amazon.co.uk MA9YG47U4",13.11,"Northicote Farm","5969","R4000","23/09/2019"
"Wolverhampton City Council","http://opendatacommunities.org/id/metropolitan-district-council/wolverhampton","TFM FARM   COUNTRY",76.24,"Northicote Farm","0763","R4007","23/09/2019"
"Wolverhampton City Council","http://opendatacommunities.org/id/metropolitan-district-council/wolverhampton","Amazon.co.uk MA1HH6224",89.4,"Strategic ICTS (ICT Serv Budget)","5969","Computing - Consumables","20/09/2019"
"Wolverhampton City Council","http://opendatacommunities.org/id/metropolitan-district-council/wolverhampton","PPOINT_ BANGA STORES 7",35.5,"Key to Inspiration","5411","Clothing / Uniforms","20/09/2019"
"Wolverhampton City Council","http://opendatacommunities.org/id/metropolitan-district-council/wolverhampton","LION PICTURE FRAMING S",130.94,"Technician","5999","R4007","20/09/2019"
"Wolverhampton City Council","http://opendatacommunities.org/id/metropolitan-district-council/wolverhampton","B&M RETAIL LTD",184.88,"LAC Transitions Team","5310","Client Allowances","20/09/2019"
"Wolverhampton City Council","http://opendatacommunities.org/id/metropolitan-district-council/wolverhampton","ARGOS LTD",457.95,"LAC Transitions Team","5310","Client Allowances","20/09/2019"
"Wolverhampton City Council","http://opendatacommunities.org/id/metropolitan-district-council/wolverhampton","HOME BARGAINS",12.45,"LAC Transitions Team","5251","Client Allowances","20/09/2019"
"Wolverhampton City Council","http://opendatacommunities.org/id/metropolitan-district-council/wolverhampton","HILTON",72,"CAT","3504","Section 17","20/09/2019"
"Wolverhampton City Council","http://opendatacommunities.org/id/metropolitan-district-council/wolverhampton","ASDA GROCERIES ONLINE",5,"Bradley Resource Centre","5411","Provisions (Not for resale)","20/09/2019"
"Wolverhampton City Council","http://opendatacommunities.org/id/metropolitan-district-council/wolverhampton","HOTELSCOM8006472157220",74.17,"Emergency Duty Team","4722","Accommodation Costs","20/09/2019"
"Wolverhampton City Council","http://opendatacommunities.org/id/metropolitan-district-council/wolverhampton","POST OFFICE COUNTER",380,"Regional Adoption Agency","9402","Comms - Postage","20/09/2019"
"Wolverhampton City Council","http://opendatacommunities.org/id/metropolitan-district-council/wolverhampton","AMZNMktplace",33.9,"Bert Williams Leisure Centre","5999","R4000","20/09/2019"
"Wolverhampton City Council","http://opendatacommunities.org/id/metropolitan-district-council/wolverhampton","SAINSBURYS SACAT (2340",13.2,"Mayoral Expenses","5411","Hospitality","20/09/2019"
"Wolverhampton City Council","http://opendatacommunities.org/id/metropolitan-district-council/wolverhampton","ProDirectSoccer",57.46,"LAC Transitions Team","5941","Client Allowances","20/09/2019"
"Wolverhampton City Council","http://opendatacommunities.org/id/metropolitan-district-council/wolverhampton","WP-CENTRAL TAXIS L",100,"LAC Transitions Team","4121","Client Allowances","20/09/2019"
"Wolverhampton City Council","http://opendatacommunities.org/id/metropolitan-district-council/wolverhampton","Trainline",98.24,"Healthy Ageing","4112","Public Transport","20/09/2019"
"Wolverhampton City Council","http://opendatacommunities.org/id/metropolitan-district-council/wolverhampton","CITY OF WOLVERHAMPTON",13.33,"LAC Transitions Team","9399","Client Allowances","20/09/2019"
"Wolverhampton City Council","http://opendatacommunities.org/id/metropolitan-district-council/wolverhampton","CardtronicsUK",50,"Intensive Family Support Team","6011","Equipment - Hire","20/09/2019"
"Wolverhampton City Council","http://opendatacommunities.org/id/metropolitan-district-council/wolverhampton","Trainline.com",6.16,"Children & Young People Support Costs","4112","Public Transport","20/09/2019"
"Wolverhampton City Council","http://opendatacommunities.org/id/metropolitan-district-council/wolverhampton","AMZNMktplace",14.48,"School Crossing Patrol","5999","Equipment - R & M","20/09/2019"
"Wolverhampton City Council","http://opendatacommunities.org/id/metropolitan-district-council/wolverhampton","Amazon.co.uk MA27S2KI4",24.99,"SEN Sensory Inclusion","5969","R4000","20/09/2019"
"Wolverhampton City Council","http://opendatacommunities.org/id/metropolitan-district-council/wolverhampton","POUNDLAND LTD 1463",2,"Head of Strategic Commissioning � People","5310","Catering","20/09/2019"
"Wolverhampton City Council","http://opendatacommunities.org/id/metropolitan-district-council/wolverhampton","ICELAND",15.6,"Head of Strategic Commissioning � People","5411","Catering","20/09/2019"
"Wolverhampton City Council","http://opendatacommunities.org/id/metropolitan-district-council/wolverhampton","NAMESCO",10,"Technical Support","4816","Subscriptions","20/09/2019"
"Wolverhampton City Council","http://opendatacommunities.org/id/metropolitan-district-council/wolverhampton","WP-CENTRAL TAXIS L",214.2,"LAC Team","4121","Client Transport","20/09/2019"
"Wolverhampton City Council","http://opendatacommunities.org/id/metropolitan-district-council/wolverhampton","BOOKPOINT LIMITED",-63.5,"Inclusion Support","5192","Materials","20/09/2019"
"Wolverhampton City Council","http://opendatacommunities.org/id/metropolitan-district-council/wolverhampton","AMZNMktplace",412.24,"Environmental Crime and Consumer Protect","5999","R4000","20/09/2019"
"Wolverhampton City Council","http://opendatacommunities.org/id/metropolitan-district-council/wolverhampton","FARMFOODS- TIPTON",25,"Bradley Resource Centre","5411","Cleaning Supplies and Materials","20/09/2019"
"Wolverhampton City Council","http://opendatacommunities.org/id/metropolitan-district-council/wolverhampton","PAYPAL  JAALLISON",42,"Workforce Development","8999","Training Expenses","20/09/2019"
"Wolverhampton City Council","http://opendatacommunities.org/id/metropolitan-district-council/wolverhampton","PAYPAL  CHARTEREDMA",70,"Workforce Development","8398","Training Expenses","20/09/2019"
"Wolverhampton City Council","http://opendatacommunities.org/id/metropolitan-district-council/wolverhampton","PAYPAL  PRACTICE EN",59,"Central Training","8244","Training Expenses","20/09/2019"
"Wolverhampton City Council","http://opendatacommunities.org/id/metropolitan-district-council/wolverhampton","SPORTSDIRECT 383",16.05,"IMPACT","5941","R4000","19/09/2019"
"Wolverhampton City Council","http://opendatacommunities.org/id/metropolitan-district-council/wolverhampton","WWW.WMCA.CO.UK",65.5,"IMPACT","9399","Public Transport","19/09/2019"
"Wolverhampton City Council","http://opendatacommunities.org/id/metropolitan-district-council/wolverhampton","AMZNMktplace",3.32,"IMPACT","5999","R4000","19/09/2019"
"Wolverhampton City Council","http://opendatacommunities.org/id/metropolitan-district-council/wolverhampton","EDMUNDSON ELECTRICAL L",28.78,"Street Lighting Maintenance","5065","Materials","19/09/2019"
"Wolverhampton City Council","http://opendatacommunities.org/id/metropolitan-district-council/wolverhampton","AMZNMktplace",44.44,"Street Lighting Maintenance","5999","Materials","19/09/2019"
"Wolverhampton City Council","http://opendatacommunities.org/id/metropolitan-district-council/wolverhampton","Virgin Trains",72.5,"Regional Adoption Agency","4112","Public Transport","19/09/2019"
"Wolverhampton City Council","http://opendatacommunities.org/id/metropolitan-district-council/wolverhampton","Virgin Trains",172.6,"Regional Adoption Agency","4112","Public Transport","19/09/2019"
"Wolverhampton City Council","http://opendatacommunities.org/id/metropolitan-district-council/wolverhampton","AMZNMktplace",34.99,"Bert Williams Leisure Centre","5999","R4000","19/09/2019"
"Wolverhampton City Council","http://opendatacommunities.org/id/metropolitan-district-council/wolverhampton","Trainline",11.24,"LAC Education Team (LACE)","4112","Public Transport","19/09/2019"
"Wolverhampton City Council","http://opendatacommunities.org/id/metropolitan-district-council/wolverhampton","ASDA GROCERIES ONLINE",199.67,"Upper Pendeford Farm Childrens Home","5411","Provisions (Not for resale)","19/09/2019"
"Wolverhampton City Council","http://opendatacommunities.org/id/metropolitan-district-council/wolverhampton","Central Taxis Limited",19,"LAC Team","4121","Financial Assistance In Exceptional Circ","19/09/2019"
"Wolverhampton City Council","http://opendatacommunities.org/id/metropolitan-district-council/wolverhampton","Central Taxis Limited",19,"LAC Team","4121","Financial Assistance In Exceptional Circ","19/09/2019"
"Wolverhampton City Council","http://opendatacommunities.org/id/metropolitan-district-council/wolverhampton","THE MOUNT HOTEL",120.83,"Emergency Duty Team","7011","Accommodation Costs","19/09/2019"
"Wolverhampton City Council","http://opendatacommunities.org/id/metropolitan-district-council/wolverhampton","HILTON",137.5,"Service Director Adults","3504","Accommodation Costs","19/09/2019"
"Wolverhampton City Council","http://opendatacommunities.org/id/metropolitan-district-council/wolverhampton","SCREWFIX DIRECT",55.95,"Central Costs","5200","R4009","19/09/2019"
"Wolverhampton City Council","http://opendatacommunities.org/id/metropolitan-district-council/wolverhampton","S & B WASTE",171,"Central Costs","4900","R5003","19/09/2019"
"Wolverhampton City Council","http://opendatacommunities.org/id/metropolitan-district-council/wolverhampton","WWW.WOLVERHAMPTON.GOV.",75.24,"LAC Transitions Team","9399","Client Allowances","19/09/2019"
"Wolverhampton City Council","http://opendatacommunities.org/id/metropolitan-district-council/wolverhampton","ARGOS RETAIL GROUP",12.49,"Telecare","5310","R4000","19/09/2019"
"Wolverhampton City Council","http://opendatacommunities.org/id/metropolitan-district-council/wolverhampton","RAYTON ELECT WSALERS L",40.5,"Cleaning of Buildings - General","5999","-","19/09/2019"
"Wolverhampton City Council","http://opendatacommunities.org/id/metropolitan-district-council/wolverhampton","RAYTON ELECT WSALERS L",84.96,"Cleaning of Buildings - General","5999","-","19/09/2019"
"Wolverhampton City Council","http://opendatacommunities.org/id/metropolitan-district-council/wolverhampton","123-REG.CO.UK",41.96,"Technical Support","4816","Subscriptions","19/09/2019"
"Wolverhampton City Council","http://opendatacommunities.org/id/metropolitan-district-council/wolverhampton","B & Q 1243",12.48,"Bradley Resource Centre","5200","Materials","19/09/2019"
"Wolverhampton City Council","http://opendatacommunities.org/id/metropolitan-district-council/wolverhampton","B & Q 1243",15,"Community Enablement","5200","Materials","19/09/2019"
"Wolverhampton City Council","http://opendatacommunities.org/id/metropolitan-district-council/wolverhampton","B & Q 1243",6.45,"Specialist Support Service - North","5200","Equipment - R & M","19/09/2019"
"Wolverhampton City Council","http://opendatacommunities.org/id/metropolitan-district-council/wolverhampton","Virgin Trains",63.05,"Looked After Team 2","4112","Client Transport","19/09/2019"
"Wolverhampton City Council","http://opendatacommunities.org/id/metropolitan-district-council/wolverhampton","WATERSTONES",50,"Management Support","5942","Services - Fees and Charges","19/09/2019"
"Wolverhampton City Council","http://opendatacommunities.org/id/metropolitan-district-council/wolverhampton","SAINSBURYS (2340)",9.4,"Civic Centre Catering","5411","Catering","19/09/2019"
"Wolverhampton City Council","http://opendatacommunities.org/id/metropolitan-district-council/wolverhampton","OAKLAND",91.67,"Mental Health Assessment & Care Mgmt","7011","Accommodation Costs","19/09/2019"
"Wolverhampton City Council","http://opendatacommunities.org/id/metropolitan-district-council/wolverhampton","ASDA GROCERIES ONLINE",171.01,"Bradley Resource Centre","5411","Provisions (Not for resale)","19/09/2019"
"Wolverhampton City Council","http://opendatacommunities.org/id/metropolitan-district-council/wolverhampton","GOOGLE  ADS6872419364",187.69,"Communications & Marketing - General","5968","Marketing \ Non-staff advertising","19/09/2019"
"Wolverhampton City Council","http://opendatacommunities.org/id/metropolitan-district-council/wolverhampton","AMZNMKTPLACE AMAZON.CO",41.66,"WV Active Marketing","5999","Marketing \ Non-staff advertising","18/09/2019"
"Wolverhampton City Council","http://opendatacommunities.org/id/metropolitan-district-council/wolverhampton","POUNDSTRETCHER",6,"LAC Transitions Team","5331","Client Allowances","18/09/2019"
"Wolverhampton City Council","http://opendatacommunities.org/id/metropolitan-district-council/wolverhampton","WWW.BRISTOWSUTOR.C",0,"Revenues","9399","R9382","18/09/2019"
"Wolverhampton City Council","http://opendatacommunities.org/id/metropolitan-district-council/wolverhampton","IKON GALLERY LTD",89.9,"Art Gallery Shop","8398","Materials for resale","18/09/2019"
"Wolverhampton City Council","http://opendatacommunities.org/id/metropolitan-district-council/wolverhampton","Virgin Trains",200.92,"Visitor Economy - Development","4112","Conference Expenses","18/09/2019"
"Wolverhampton City Council","http://opendatacommunities.org/id/metropolitan-district-council/wolverhampton","SCREWFIX DIRECT",155.89,"IMPACT","5200","R4000","18/09/2019"
"Wolverhampton City Council","http://opendatacommunities.org/id/metropolitan-district-council/wolverhampton","EDMUNDSON ELECTRICAL L",175.72,"Street Lighting Maintenance","5065","Equipment - R & M","18/09/2019"
"Wolverhampton City Council","http://opendatacommunities.org/id/metropolitan-district-council/wolverhampton","WEST COAST TRAINS",8.42,"Economic Development","4112","Public Transport","18/09/2019"
"Wolverhampton City Council","http://opendatacommunities.org/id/metropolitan-district-council/wolverhampton","AMZNMktplace",79.97,"Bert Williams Leisure Centre","5999","R4000","18/09/2019"
"Wolverhampton City Council","http://opendatacommunities.org/id/metropolitan-district-council/wolverhampton","AMZNMktplace",14.97,"Mayoral Expenses","5999","Equipment - R & M","18/09/2019"
"Wolverhampton City Council","http://opendatacommunities.org/id/metropolitan-district-council/wolverhampton","SAINSBURYS PFS (1340)",2.5,"Mayoral Expenses","5541","Vehicle Maintenance - Repairs","18/09/2019"
"Wolverhampton City Council","http://opendatacommunities.org/id/metropolitan-district-council/wolverhampton","ASDA SUPERSTORE",37.5,"LAC Transitions Team","5411","Client Allowances","18/09/2019"
"Wolverhampton City Council","http://opendatacommunities.org/id/metropolitan-district-council/wolverhampton","B&M RETAIL LTD",49.97,"LAC Transitions Team","5310","Client Allowances","18/09/2019"
"Wolverhampton City Council","http://opendatacommunities.org/id/metropolitan-district-council/wolverhampton","HILTON",275,"Children & Young People Support Costs","3504","Accommodation Costs","18/09/2019"
"Wolverhampton City Council","http://opendatacommunities.org/id/metropolitan-district-council/wolverhampton","HILTON",275,"Children & Young People Support Costs","3504","Accommodation Costs","18/09/2019"
"Wolverhampton City Council","http://opendatacommunities.org/id/metropolitan-district-council/wolverhampton","HILTON",330,"Service Director Adults","3504","Accommodation Costs","18/09/2019"
"Wolverhampton City Council","http://opendatacommunities.org/id/metropolitan-district-council/wolverhampton","HILTON",275,"Service Director Adults","3504","Accommodation Costs","18/09/2019"
"Wolverhampton City Council","http://opendatacommunities.org/id/metropolitan-district-council/wolverhampton","WWW.ARGOS.CO.UK",31.62,"LAC Transitions Team","5310","Client Allowances","18/09/2019"
"Wolverhampton City Council","http://opendatacommunities.org/id/metropolitan-district-council/wolverhampton","WWW.WOLVERHAMPTON.GOV.",69.87,"LAC Transitions Team","9399","Client Allowances","18/09/2019"
"Wolverhampton City Council","http://opendatacommunities.org/id/metropolitan-district-council/wolverhampton","B & Q 1243",89,"Wolverhampton Indoor and Open Market","5200","R4000","18/09/2019"
"Wolverhampton City Council","http://opendatacommunities.org/id/metropolitan-district-council/wolverhampton","POST OFFICE COUNTER",4,"Telecare","9402","Comms - Postage","18/09/2019"
"Wolverhampton City Council","http://opendatacommunities.org/id/metropolitan-district-council/wolverhampton","DUNELM (SOFT FURNISHIN",114.75,"Bradley Resource Centre","5714","R4000","18/09/2019"
"Wolverhampton City Council","http://opendatacommunities.org/id/metropolitan-district-council/wolverhampton","DUNELM (SOFT FURNISHIN",593.25,"Bradley Resource Centre","5714","R4000","18/09/2019"
"Wolverhampton City Council","http://opendatacommunities.org/id/metropolitan-district-council/wolverhampton","WWW.WATERSTONESGIFTCAR",-100,"Food and Health & Safety","5942","Services - Fees and Charges","18/09/2019"
"Wolverhampton City Council","http://opendatacommunities.org/id/metropolitan-district-council/wolverhampton","ARGOS LTD",228.31,"LAC Transitions Team","5310","Client Allowances","18/09/2019"
"Wolverhampton City Council","http://opendatacommunities.org/id/metropolitan-district-council/wolverhampton","PAST PRESENT AND FUTUR",333.33,"LAC Transitions Team","5732","Client Allowances","18/09/2019"
"Wolverhampton City Council","http://opendatacommunities.org/id/metropolitan-district-council/wolverhampton","iZ  BH Appliances",50,"LAC Transitions Team","5999","Client Allowances","18/09/2019"
"Wolverhampton City Council","http://opendatacommunities.org/id/metropolitan-district-council/wolverhampton","QUEENSWAY INTERIOR",116.67,"LAC Transitions Team","5712","Client Allowances","18/09/2019"
"Wolverhampton City Council","http://opendatacommunities.org/id/metropolitan-district-council/wolverhampton","Trainline.com",67.92,"CIN/CP Social Work Unit - Area 4","4112","Public Transport","18/09/2019"
"Wolverhampton City Council","http://opendatacommunities.org/id/metropolitan-district-council/wolverhampton","EB  SEMINAR PROCUREMEN",22.95,"Workforce Development","7399","Training Expenses","18/09/2019"
"Wolverhampton City Council","http://opendatacommunities.org/id/metropolitan-district-council/wolverhampton","CITY OF WOLVERHAMPTON",27,"Head of Service - CINCP","9399","Services - Professional Fees","18/09/2019"
"Wolverhampton City Council","http://opendatacommunities.org/id/metropolitan-district-council/wolverhampton","SAINSBURYS SACAT 2040",25,"Duke Street Bungalows","5411","R4010","18/09/2019"
"Wolverhampton City Council","http://opendatacommunities.org/id/metropolitan-district-council/wolverhampton","APPLE.COM/UK",10,"Members Expenses","5732","R4400","18/09/2019"
"Wolverhampton City Council","http://opendatacommunities.org/id/metropolitan-district-council/wolverhampton","WM MORRISONS STORE",8,"Safeguarding Admin Resource","5411","R4000","17/09/2019"
"Wolverhampton City Council","http://opendatacommunities.org/id/metropolitan-district-council/wolverhampton","WWW.BRISTOWSUTOR.C",0,"Parking Enforcement","9399","R9382","17/09/2019"
"Wolverhampton City Council","http://opendatacommunities.org/id/metropolitan-district-council/wolverhampton","TESCO STORES 5194",-4.53,"Towers Outdoor Education Centre","5411","Provisions (Not for resale)","17/09/2019"
"Wolverhampton City Council","http://opendatacommunities.org/id/metropolitan-district-council/wolverhampton","TESCO STORES 5194",103.18,"Towers Outdoor Education Centre","5411","Provisions (Not for resale)","17/09/2019"
"Wolverhampton City Council","http://opendatacommunities.org/id/metropolitan-district-council/wolverhampton","TRIP.COM 10377978836",119.5,"ALV - Darts & Comedy","4722","Conference Expenses","17/09/2019"
"Wolverhampton City Council","http://opendatacommunities.org/id/metropolitan-district-council/wolverhampton","W M MORRISONS.COM",99.25,"Bradley Resource Centre","5411","Provisions (Not for resale)","17/09/2019"
"Wolverhampton City Council","http://opendatacommunities.org/id/metropolitan-district-council/wolverhampton","WWW.PRIMESTUDENTLIVING",5608,"LAC Transitions Team","6513","Client Allowances","17/09/2019"
"Wolverhampton City Council","http://opendatacommunities.org/id/metropolitan-district-council/wolverhampton","NATWEST BANK",200,"Court Team","6011","Section 17","17/09/2019"
"Wolverhampton City Council","http://opendatacommunities.org/id/metropolitan-district-council/wolverhampton","AMZNMktplace",27.2,"Regional Adoption Agency","5999","Stationery","17/09/2019"
"Wolverhampton City Council","http://opendatacommunities.org/id/metropolitan-district-council/wolverhampton","AMZNMKTPLACE AMAZON.CO",9.97,"Regional Adoption Agency","5999","Computing - Consumables","17/09/2019"
"Wolverhampton City Council","http://opendatacommunities.org/id/metropolitan-district-council/wolverhampton","BLOXWICH NORTH SST",4.25,"Economic Development","4112","Public Transport","17/09/2019"
"Wolverhampton City Council","http://opendatacommunities.org/id/metropolitan-district-council/wolverhampton","Virgin Trains",186,"Fostering Team","4112","Public Transport","17/09/2019"
"Wolverhampton City Council","http://opendatacommunities.org/id/metropolitan-district-council/wolverhampton","MARSTONS PLC",362.56,"Mayoral Expenses","5921","Hospitality","17/09/2019"
"Wolverhampton City Council","http://opendatacommunities.org/id/metropolitan-district-council/wolverhampton","WISEPOPS",88.65,"Communications & Marketing - General","7372","Computing - Purchase of Hardware","17/09/2019"
"Wolverhampton City Council","http://opendatacommunities.org/id/metropolitan-district-council/wolverhampton","HOME BARGAINS",40.43,"LAC Transitions Team","5251","Client Allowances","17/09/2019"
"Wolverhampton City Council","http://opendatacommunities.org/id/metropolitan-district-council/wolverhampton","TESCO STORES 5503",12.08,"LAC Transitions Team","5411","Client Allowances","17/09/2019"
"Wolverhampton City Council","http://opendatacommunities.org/id/metropolitan-district-council/wolverhampton","CITY DIRECT",40,"LAC Team","8299","Financial Assistance In Exceptional Circ","17/09/2019"
"Wolverhampton City Council","http://opendatacommunities.org/id/metropolitan-district-council/wolverhampton","POST OFFICE COUNTER",7.4,"Looked After Team 2","9402","Services - Fees and Charges","17/09/2019"
"Wolverhampton City Council","http://opendatacommunities.org/id/metropolitan-district-council/wolverhampton","THE POST OFFICE",220,"Network Management","9402","Services - Fees and Charges","17/09/2019"
"Wolverhampton City Council","http://opendatacommunities.org/id/metropolitan-district-council/wolverhampton","FS160 CLAREGATE",6.09,"Bradley Resource Centre","5541","R4007","17/09/2019"
"Wolverhampton City Council","http://opendatacommunities.org/id/metropolitan-district-council/wolverhampton","DVLA DRIVER ONLINE",28.33,"LAC Transitions Team","9399","Client Allowances","17/09/2019"
"Wolverhampton City Council","http://opendatacommunities.org/id/metropolitan-district-council/wolverhampton","ASDA GROCERIES ONLINE",57.59,"Ernest Bold Court","5411","Provisions (Not for resale)","17/09/2019"
"Wolverhampton City Council","http://opendatacommunities.org/id/metropolitan-district-council/wolverhampton","WWW.WATERSTONESGIFTCAR",100,"Food and Health & Safety","5942","Services - Fees and Charges","17/09/2019"
"Wolverhampton City Council","http://opendatacommunities.org/id/metropolitan-district-council/wolverhampton","Trainline.com",32.87,"CIN/CP Social Work Unit - Area 4","4112","Section 17","17/09/2019"
"Wolverhampton City Council","http://opendatacommunities.org/id/metropolitan-district-council/wolverhampton","TOOLSTATION LTD",16.96,"Education Catering - General Overheads","5251","Catering","17/09/2019"
"Wolverhampton City Council","http://opendatacommunities.org/id/metropolitan-district-council/wolverhampton","LOYD 37 CHURCH STREET",200,"Duke Street Bungalows","6011","Provisions (Not for resale)","17/09/2019"
"Wolverhampton City Council","http://opendatacommunities.org/id/metropolitan-district-council/wolverhampton","THE COAL AUTHORITY",40.64,"Disposal Costs","9399","Services - Professional Fees","17/09/2019"
"Wolverhampton City Council","http://opendatacommunities.org/id/metropolitan-district-council/wolverhampton","NATWEST BANK",200,"NRPF","6011","No Recourse to Public Funds","17/09/2019"
"Wolverhampton City Council","http://opendatacommunities.org/id/metropolitan-district-council/wolverhampton","SAINSBURYS 2040",21.9,"Duke Street Bungalows","5411","R4010","17/09/2019"
"Wolverhampton City Council","http://opendatacommunities.org/id/metropolitan-district-council/wolverhampton","Amazon.co.uk MA7GV9QD4",14.98,"Safeguarding Admin Resource","5969","R4000","16/09/2019"
"Wolverhampton City Council","http://opendatacommunities.org/id/metropolitan-district-council/wolverhampton","HARLECH FOODSERVICE LT",45.28,"Towers Outdoor Education Centre","5422","Provisions (Not for resale)","16/09/2019"
"Wolverhampton City Council","http://opendatacommunities.org/id/metropolitan-district-council/wolverhampton","WYNNSTAY ARGICULTURAL",291.6,"Towers Outdoor Education Centre","5311","Fixtures and Fittings - Purchases","16/09/2019"
"Wolverhampton City Council","http://opendatacommunities.org/id/metropolitan-district-council/wolverhampton","BURTECH CYF",361.97,"Towers Outdoor Education Centre","7538","Vehicle Maintenance - Repairs","16/09/2019"
"Wolverhampton City Council","http://opendatacommunities.org/id/metropolitan-district-council/wolverhampton","ASDA GROCERIES ONLINE",-0.62,"Key to Inspiration","5411","Provisions (Resale)","16/09/2019"
"Wolverhampton City Council","http://opendatacommunities.org/id/metropolitan-district-council/wolverhampton","ASDA GROCERIES ONLINE",190.94,"Key to Inspiration","5411","Provisions (Not for resale)","16/09/2019"
"Wolverhampton City Council","http://opendatacommunities.org/id/metropolitan-district-council/wolverhampton","ARGOS LTD",39.99,"Key to Inspiration","5310","R4400","16/09/2019"
"Wolverhampton City Council","http://opendatacommunities.org/id/metropolitan-district-council/wolverhampton","WWW.ICELAND.CO.UK",83.05,"Bradley Resource Centre","5411","Provisions (Not for resale)","16/09/2019"
"Wolverhampton City Council","http://opendatacommunities.org/id/metropolitan-district-council/wolverhampton","ONE STOP 2966",15.65,"Bradley Resource Centre","5411","Provisions (Not for resale)","16/09/2019"
"Wolverhampton City Council","http://opendatacommunities.org/id/metropolitan-district-council/wolverhampton","ASDA STORE",69.65,"Bradley Resource Centre","5411","Provisions (Not for resale)","16/09/2019"
"Wolverhampton City Council","http://opendatacommunities.org/id/metropolitan-district-council/wolverhampton","WWW.ICELAND.CO.UK",43.04,"Bradley Resource Centre","5411","Provisions (Not for resale)","16/09/2019"
"Wolverhampton City Council","http://opendatacommunities.org/id/metropolitan-district-council/wolverhampton","WOLVERHAMPTON T/O",37.2,"Strategic ICTS (ICT Serv Budget)","4112","Public Transport","16/09/2019"
"Wolverhampton City Council","http://opendatacommunities.org/id/metropolitan-district-council/wolverhampton","Trainline",135.33,"Strategic ICTS (ICT Serv Budget)","4112","Public Transport","16/09/2019"
"Wolverhampton City Council","http://opendatacommunities.org/id/metropolitan-district-council/wolverhampton","Trainline.com",99.72,"Strategic ICTS (ICT Serv Budget)","4112","Public Transport","16/09/2019"
"Wolverhampton City Council","http://opendatacommunities.org/id/metropolitan-district-council/wolverhampton","ASDA SUPERSTORE",4,"IMPACT","5411","R4317","16/09/2019"
"Wolverhampton City Council","http://opendatacommunities.org/id/metropolitan-district-council/wolverhampton","ARGOS WOLVERHAMPTO",137.48,"LAC Transitions Team","5310","Client Allowances","16/09/2019"
"Wolverhampton City Council","http://opendatacommunities.org/id/metropolitan-district-council/wolverhampton","ARGOS WOLVERHAMPTO",416.63,"LAC Transitions Team","5310","Client Allowances","16/09/2019"
"Wolverhampton City Council","http://opendatacommunities.org/id/metropolitan-district-council/wolverhampton","ARGOS WOLVERHAMPTO",115.16,"LAC Transitions Team","5310","Client Allowances","16/09/2019"
"Wolverhampton City Council","http://opendatacommunities.org/id/metropolitan-district-council/wolverhampton","Amazon.co.uk MA51X0D24",24.99,"School Improvement","5969","Books","16/09/2019"
"Wolverhampton City Council","http://opendatacommunities.org/id/metropolitan-district-council/wolverhampton","CARVER/WOLVERHAMPTON/L",193.61,"Street Lighting Maintenance","5211","Equipment - R & M","16/09/2019"
"Wolverhampton City Council","http://opendatacommunities.org/id/metropolitan-district-council/wolverhampton","SUBWAY",5.59,"Youth Offending Team","5814","Educ Trips, Holidays, Outings, Activity","16/09/2019"
"Wolverhampton City Council","http://opendatacommunities.org/id/metropolitan-district-council/wolverhampton","WWW.NISBETS.COM",71.67,"LAC Transitions Team","5964","Client Allowances","16/09/2019"
"Wolverhampton City Council","http://opendatacommunities.org/id/metropolitan-district-council/wolverhampton","TVLICENSING.CO.UK",128.75,"LAC Transitions Team","7392","Client Allowances","16/09/2019"
"Wolverhampton City Council","http://opendatacommunities.org/id/metropolitan-district-council/wolverhampton","PREMIER INN",143,"Regional Adoption Agency","3811","Accommodation Costs","16/09/2019"
"Wolverhampton City Council","http://opendatacommunities.org/id/metropolitan-district-council/wolverhampton","Virgin Trains",-353.1,"Regional Adoption Agency","4112","Public Transport","16/09/2019"
"Wolverhampton City Council","http://opendatacommunities.org/id/metropolitan-district-council/wolverhampton","Virgin Trains",181.6,"Regional Adoption Agency","4112","Public Transport","16/09/2019"
"Wolverhampton City Council","http://opendatacommunities.org/id/metropolitan-district-council/wolverhampton","Virgin Trains",313.1,"Regional Adoption Agency","4112","Public Transport","16/09/2019"
"Wolverhampton City Council","http://opendatacommunities.org/id/metropolitan-district-council/wolverhampton","Virgin Trains",363.1,"Regional Adoption Agency","4112","Public Transport","16/09/2019"
"Wolverhampton City Council","http://opendatacommunities.org/id/metropolitan-district-council/wolverhampton","GOOGLE  ADS9680351324",500,"Communications & Marketing - General","5968","Subscriptions","16/09/2019"
"Wolverhampton City Council","http://opendatacommunities.org/id/metropolitan-district-council/wolverhampton","ITUNES.COM/BILL",2.07,"LAC Education Team (LACE)","5735","Computing - Purchase of Software","16/09/2019"
"Wolverhampton City Council","http://opendatacommunities.org/id/metropolitan-district-council/wolverhampton","POST OFFICE COUNTER",2.64,"LAC Transitions Team","9402","Client Allowances","16/09/2019"
"Wolverhampton City Council","http://opendatacommunities.org/id/metropolitan-district-council/wolverhampton","ASDA GROCERIES ONLINE",5,"Upper Pendeford Farm Childrens Home","5411","Provisions (Not for resale)","16/09/2019"
"Wolverhampton City Council","http://opendatacommunities.org/id/metropolitan-district-council/wolverhampton","Central Taxis Limited",20,"LAC Team","4121","Financial Assistance In Exceptional Circ","16/09/2019"
"Wolverhampton City Council","http://opendatacommunities.org/id/metropolitan-district-council/wolverhampton","PLAYTHERAPYSUPPLY.COM",-1410.03,"Children & Young People Support Costs","5945","Equipment - R & M","16/09/2019"
"Wolverhampton City Council","http://opendatacommunities.org/id/metropolitan-district-council/wolverhampton","LOTUS GARDEN",21.6,"Ernest Bold Court","5814","Provisions (Not for resale)","16/09/2019"
"Wolverhampton City Council","http://opendatacommunities.org/id/metropolitan-district-council/wolverhampton","123 REG R/T",11.99,"Art Gallery","5968","-","16/09/2019"
"Wolverhampton City Council","http://opendatacommunities.org/id/metropolitan-district-council/wolverhampton","ASDA GROCERIES ONLINE",49.31,"Ernest Bold Court","5411","Provisions (Not for resale)","16/09/2019"
"Wolverhampton City Council","http://opendatacommunities.org/id/metropolitan-district-council/wolverhampton","PAYPAL  CHATTYCAFES",10,"Civic Centre Catering","8398","R4010","16/09/2019"
"Wolverhampton City Council","http://opendatacommunities.org/id/metropolitan-district-council/wolverhampton","WEST MIDLANDS EMPLOYER",68,"Workforce Development","7392","Training Expenses","16/09/2019"
"Wolverhampton City Council","http://opendatacommunities.org/id/metropolitan-district-council/wolverhampton","HMCOURTS-SERVICE.G",75,"Mental Health Assessment & Care Mgmt","9222","Services - Fees and Charges","16/09/2019"
"Wolverhampton City Council","http://opendatacommunities.org/id/metropolitan-district-council/wolverhampton","AMZNMktplace",27.46,"Fleet Management","5999","R4000","16/09/2019"
"Wolverhampton City Council","http://opendatacommunities.org/id/metropolitan-district-council/wolverhampton","ROYAL MAIL",512,"Coroners","9402","Comms - Postage","16/09/2019"
"Wolverhampton City Council","http://opendatacommunities.org/id/metropolitan-district-council/wolverhampton","Trainline",82.26,"Music Support Team","4112","Public Transport","16/09/2019"
"Wolverhampton City Council","http://opendatacommunities.org/id/metropolitan-district-council/wolverhampton","THE POST OFFICE",17.5,"Adult Services - East","9402","Comms - Postage","16/09/2019"
"Wolverhampton City Council","http://opendatacommunities.org/id/metropolitan-district-council/wolverhampton","CO-OP GROUP 070362",5.8,"Northicote Farm","5411","Provisions (Not for resale)","16/09/2019"
"Wolverhampton City Council","http://opendatacommunities.org/id/metropolitan-district-council/wolverhampton","PAYPAL  GREENTECH",159,"Northicote Farm","5251","R4007","16/09/2019"
"Wolverhampton City Council","http://opendatacommunities.org/id/metropolitan-district-council/wolverhampton","PAYPAL  AETDING",2.84,"Northicote Farm","5699","R4000","16/09/2019"
"Wolverhampton City Council","http://opendatacommunities.org/id/metropolitan-district-council/wolverhampton","MONARCH CLEANERS LTD",779.31,"Towers Outdoor Education Centre","7216","Laundry Expenses","13/09/2019"
"Wolverhampton City Council","http://opendatacommunities.org/id/metropolitan-district-council/wolverhampton","AO RETAIL LIMITED",767.98,"Key to Inspiration","5722","Fixtures and Fittings - Purchases","13/09/2019"
"Wolverhampton City Council","http://opendatacommunities.org/id/metropolitan-district-council/wolverhampton","ASDA GROCERIES ONLINE",97.02,"Bradley Resource Centre","5411","Provisions (Not for resale)","13/09/2019"
"Wolverhampton City Council","http://opendatacommunities.org/id/metropolitan-district-council/wolverhampton","SPORTSDIRECT 383",91.05,"IMPACT","5941","R4000","13/09/2019"
"Wolverhampton City Council","http://opendatacommunities.org/id/metropolitan-district-council/wolverhampton","B&M RETAIL LTD",74.09,"LAC Transitions Team","5310","Client Allowances","13/09/2019"
"Wolverhampton City Council","http://opendatacommunities.org/id/metropolitan-district-council/wolverhampton","DUNELM (SOFT FURNISHIN",7.4,"Youth Offending Team","5714","Educ Trips, Holidays, Outings, Activity","13/09/2019"
"Wolverhampton City Council","http://opendatacommunities.org/id/metropolitan-district-council/wolverhampton","ARGOS RETAIL GROUP",164.57,"LAC Transitions Team","5310","Client Allowances","13/09/2019"
"Wolverhampton City Council","http://opendatacommunities.org/id/metropolitan-district-council/wolverhampton","WWW.WMCA.ORG.UK",122.42,"LAC Transitions Team","4111","Client Allowances","13/09/2019"
"Wolverhampton City Council","http://opendatacommunities.org/id/metropolitan-district-council/wolverhampton","AMZNMktplace",2.92,"LAC Transitions Team","5999","Client Allowances","13/09/2019"
"Wolverhampton City Council","http://opendatacommunities.org/id/metropolitan-district-council/wolverhampton","Virgin Trains",178.6,"Regional Adoption Agency","4112","Public Transport","13/09/2019"
"Wolverhampton City Council","http://opendatacommunities.org/id/metropolitan-district-council/wolverhampton","Virgin Trains",201,"Regional Adoption Agency","4112","Public Transport","13/09/2019"
"Wolverhampton City Council","http://opendatacommunities.org/id/metropolitan-district-council/wolverhampton","Virgin Trains",165.5,"Regional Adoption Agency","4112","Public Transport","13/09/2019"
"Wolverhampton City Council","http://opendatacommunities.org/id/metropolitan-district-council/wolverhampton","Virgin Trains",168.5,"Regional Adoption Agency","4112","Public Transport","13/09/2019"
"Wolverhampton City Council","http://opendatacommunities.org/id/metropolitan-district-council/wolverhampton","ROLL-A-RAMP EUROPE LTD",1069.6,"Electoral Registration","7399","Fixtures and Fittings - Purchases","13/09/2019"
"Wolverhampton City Council","http://opendatacommunities.org/id/metropolitan-district-council/wolverhampton","Trainline.com",205.13,"Headstart Phase 3","4112","Public Transport","13/09/2019"
"Wolverhampton City Council","http://opendatacommunities.org/id/metropolitan-district-council/wolverhampton","Trainline.com",408.73,"Headstart Phase 3","4112","Public Transport","13/09/2019"
"Wolverhampton City Council","http://opendatacommunities.org/id/metropolitan-district-council/wolverhampton","Trainline.com",408.73,"Headstart Phase 3","4112","Public Transport","13/09/2019"
"Wolverhampton City Council","http://opendatacommunities.org/id/metropolitan-district-council/wolverhampton","Trainline.com",408.73,"Headstart Phase 3","4112","Public Transport","13/09/2019"
"Wolverhampton City Council","http://opendatacommunities.org/id/metropolitan-district-council/wolverhampton","SPEEDONESPORTS.COM",38.33,"LAC Transitions Team","5691","Client Allowances","13/09/2019"
"Wolverhampton City Council","http://opendatacommunities.org/id/metropolitan-district-council/wolverhampton","Trainline.com",72.24,"LAC Transitions Team","4112","Client Transport","13/09/2019"
"Wolverhampton City Council","http://opendatacommunities.org/id/metropolitan-district-council/wolverhampton","WEST COAST TRAINS",26.9,"LAC Transitions Team","4112","Public Transport","13/09/2019"
"Wolverhampton City Council","http://opendatacommunities.org/id/metropolitan-district-council/wolverhampton","WEST MID TRAVEL",180.35,"Youth Offending Team","4131","Client Transport","13/09/2019"
"Wolverhampton City Council","http://opendatacommunities.org/id/metropolitan-district-council/wolverhampton","W HAMPTON1797",16.2,"Cemeteries","5211","R4400","13/09/2019"
"Wolverhampton City Council","http://opendatacommunities.org/id/metropolitan-district-council/wolverhampton","ASDA SUPERSTORE",78.29,"LAC Transitions Team","5411","Client Allowances","13/09/2019"
"Wolverhampton City Council","http://opendatacommunities.org/id/metropolitan-district-council/wolverhampton","EYE NETWORK",695,"Legal Services","5732","Services - Professional Fees","13/09/2019"
"Wolverhampton City Council","http://opendatacommunities.org/id/metropolitan-district-council/wolverhampton","Trainline",203.19,"Children & Young People Support Costs","4112","Public Transport","13/09/2019"
"Wolverhampton City Council","http://opendatacommunities.org/id/metropolitan-district-council/wolverhampton","Trainline",9.41,"Children & Young People Support Costs","4112","Public Transport","13/09/2019"
"Wolverhampton City Council","http://opendatacommunities.org/id/metropolitan-district-council/wolverhampton","TIMPSON LTD",37.75,"Central Costs","7251","Fixtures and Fittings - R&M","13/09/2019"
"Wolverhampton City Council","http://opendatacommunities.org/id/metropolitan-district-council/wolverhampton","Trainline.com",21.42,"Wolverhampton Indoor and Open Market","4112","R4000","13/09/2019"
"Wolverhampton City Council","http://opendatacommunities.org/id/metropolitan-district-council/wolverhampton","AMZ Muzamedical",-14.99,"Learning Technologies","5999","Equipment - Hire","13/09/2019"
"Wolverhampton City Council","http://opendatacommunities.org/id/metropolitan-district-council/wolverhampton","B & Q 1243",21.87,"Bradley Resource Centre","5200","Materials","13/09/2019"
"Wolverhampton City Council","http://opendatacommunities.org/id/metropolitan-district-council/wolverhampton","B & Q 1243",7.87,"Bradley Resource Centre","5200","Materials","13/09/2019"
"Wolverhampton City Council","http://opendatacommunities.org/id/metropolitan-district-council/wolverhampton","POST OFFICE COUNTER",11,"Looked After Team 2","9402","Services - Fees and Charges","13/09/2019"
"Wolverhampton City Council","http://opendatacommunities.org/id/metropolitan-district-council/wolverhampton","Trainline",41.51,"CIN/CP Social Work Unit - Area 4","4112","Section 17","13/09/2019"
"Wolverhampton City Council","http://opendatacommunities.org/id/metropolitan-district-council/wolverhampton","TFM FARM   COUNTRY",225.42,"Northicote Farm","0763","R4000","13/09/2019"
"Wolverhampton City Council","http://opendatacommunities.org/id/metropolitan-district-council/wolverhampton","BUXTON'S LIMITED",110,"Northicote Farm","5193","R4000","13/09/2019"
"Wolverhampton City Council","http://opendatacommunities.org/id/metropolitan-district-council/wolverhampton","WOLVERHAMPTON CITY COU",21,"Audience R & D","9399","Catering","12/09/2019"
"Wolverhampton City Council","http://opendatacommunities.org/id/metropolitan-district-council/wolverhampton","J D SPORTS PLC",50,"Key to Inspiration","5941","Clothing / Uniforms","12/09/2019"
"Wolverhampton City Council","http://opendatacommunities.org/id/metropolitan-district-council/wolverhampton","BRADMORE ARMS",25.4,"Key to Inspiration","5813","Educ Trips, Holidays, Outings, Activity","12/09/2019"
"Wolverhampton City Council","http://opendatacommunities.org/id/metropolitan-district-council/wolverhampton","COZENS & COLE LTD",318.86,"Civic Centre Repairs & Maintenance","5251","Equipment - R & M","12/09/2019"
"Wolverhampton City Council","http://opendatacommunities.org/id/metropolitan-district-council/wolverhampton","ASDA STORE",39.37,"Bradley Resource Centre","5411","Catering","12/09/2019"
"Wolverhampton City Council","http://opendatacommunities.org/id/metropolitan-district-council/wolverhampton","FISH4JOBS",150,"St Patrick's Catholic Primary School","7311","R1700","12/09/2019"
"Wolverhampton City Council","http://opendatacommunities.org/id/metropolitan-district-council/wolverhampton","WM MORRISONS STORE",5.36,"Ernest Bold Court","5411","Provisions (Not for resale)","12/09/2019"
"Wolverhampton City Council","http://opendatacommunities.org/id/metropolitan-district-council/wolverhampton","CARVER/WOLVERHAMPTON/L",62.52,"Street Lighting Maintenance","5211","Fixtures and Fittings - Purchases","12/09/2019"
"Wolverhampton City Council","http://opendatacommunities.org/id/metropolitan-district-council/wolverhampton","AO RETAIL LIMITED",36.67,"LAC Transitions Team","5722","Client Allowances","12/09/2019"
"Wolverhampton City Council","http://opendatacommunities.org/id/metropolitan-district-council/wolverhampton","AMZNMktplace",75.82,"Mayoral Expenses","5999","Hospitality","12/09/2019"
"Wolverhampton City Council","http://opendatacommunities.org/id/metropolitan-district-council/wolverhampton","ASDA SUPERSTORE",2.99,"LAC Transitions Team","5411","Client Allowances","12/09/2019"
"Wolverhampton City Council","http://opendatacommunities.org/id/metropolitan-district-council/wolverhampton","ROYAL BK OF SCOTLAND",250,"CIN/CP Social Work Unit - Area 6","6011","Section 17","12/09/2019"
"Wolverhampton City Council","http://opendatacommunities.org/id/metropolitan-district-council/wolverhampton","Virgin Trains",-80,"Regional Adoption Agency","4112","Public Transport","12/09/2019"
"Wolverhampton City Council","http://opendatacommunities.org/id/metropolitan-district-council/wolverhampton","Virgin Trains",184,"Regional Adoption Agency","4112","Public Transport","12/09/2019"
"Wolverhampton City Council","http://opendatacommunities.org/id/metropolitan-district-council/wolverhampton","Trainline.com",154.92,"Economic Development","4112","Public Transport","12/09/2019"
"Wolverhampton City Council","http://opendatacommunities.org/id/metropolitan-district-council/wolverhampton","CASHIERS CITY",250,"LAC Transitions Team","8220","Accommodation Costs","12/09/2019"
"Wolverhampton City Council","http://opendatacommunities.org/id/metropolitan-district-council/wolverhampton","WWW.NISBETS.COM",114.92,"LAC Transitions Team","5964","Client Allowances","12/09/2019"
"Wolverhampton City Council","http://opendatacommunities.org/id/metropolitan-district-council/wolverhampton","SAINSBURYS 0823",12,"Youth Offending Team","5411","Provisions (Not for resale)","12/09/2019"
"Wolverhampton City Council","http://opendatacommunities.org/id/metropolitan-district-council/wolverhampton","THE RANGE",15.37,"Cemeteries","5311","Cleaning Supplies and Materials","12/09/2019"
"Wolverhampton City Council","http://opendatacommunities.org/id/metropolitan-district-council/wolverhampton","WWW.BRITSOC.CO.UK",45,"Public Health Support Costs","8299","Training Expenses","12/09/2019"
"Wolverhampton City Council","http://opendatacommunities.org/id/metropolitan-district-council/wolverhampton","TOUCHWOOD SOLIHULL",3.3,"Managing Director","7523","Subsistence","12/09/2019"
"Wolverhampton City Council","http://opendatacommunities.org/id/metropolitan-district-council/wolverhampton","ASDA GROCERIES ONLINE",-0.38,"Upper Pendeford Farm Childrens Home","5411","Provisions (Not for resale)","12/09/2019"
"Wolverhampton City Council","http://opendatacommunities.org/id/metropolitan-district-council/wolverhampton","ASDA GROCERIES ONLINE",232.71,"Upper Pendeford Farm Childrens Home","5411","Provisions (Not for resale)","12/09/2019"
"Wolverhampton City Council","http://opendatacommunities.org/id/metropolitan-district-council/wolverhampton","HM PASSPORT OFFICE",117,"Looked After Team 2","9399","Financial Assistance In Exceptional Circ","12/09/2019"
"Wolverhampton City Council","http://opendatacommunities.org/id/metropolitan-district-council/wolverhampton","THEKINGSFERRY.COUK",560,"Private Hire Vehicles","4131","Services - Fees and Charges","12/09/2019"
"Wolverhampton City Council","http://opendatacommunities.org/id/metropolitan-district-council/wolverhampton","THE ROYAL STATION",1010,"Private Hire Vehicles","7011","Accommodation Costs","12/09/2019"
"Wolverhampton City Council","http://opendatacommunities.org/id/metropolitan-district-council/wolverhampton","Cross Country Trains",1031.85,"Private Hire Vehicles","4112","Services - Fees and Charges","12/09/2019"
"Wolverhampton City Council","http://opendatacommunities.org/id/metropolitan-district-council/wolverhampton","NATWEST BANK",40,"Private Hire Vehicles","6011","Services - Fees and Charges","12/09/2019"
"Wolverhampton City Council","http://opendatacommunities.org/id/metropolitan-district-council/wolverhampton","NATWEST BANK",30,"Private Hire Vehicles","6011","Services - Fees and Charges","12/09/2019"
"Wolverhampton City Council","http://opendatacommunities.org/id/metropolitan-district-council/wolverhampton","NATWEST BANK",10,"Private Hire Vehicles","6011","Services - Fees and Charges","12/09/2019"
"Wolverhampton City Council","http://opendatacommunities.org/id/metropolitan-district-council/wolverhampton","NAMESCO",20.97,"Communications & Marketing - General","4816","Marketing \ Non-staff advertising","12/09/2019"
"Wolverhampton City Council","http://opendatacommunities.org/id/metropolitan-district-council/wolverhampton","FACEBK HTJWQNSAR2",500,"Communications & Marketing - General","7311","Marketing \ Non-staff advertising","12/09/2019"
"Wolverhampton City Council","http://opendatacommunities.org/id/metropolitan-district-council/wolverhampton","ARGOS RETAIL GROUP",8.33,"LAC Transitions Team","5310","Client Allowances","12/09/2019"
"Wolverhampton City Council","http://opendatacommunities.org/id/metropolitan-district-council/wolverhampton","THE RANGE",35.82,"LAC Transitions Team","5311","Client Allowances","12/09/2019"
"Wolverhampton City Council","http://opendatacommunities.org/id/metropolitan-district-council/wolverhampton","B&M RETAIL",8.74,"LAC Transitions Team","5310","Client Allowances","12/09/2019"
"Wolverhampton City Council","http://opendatacommunities.org/id/metropolitan-district-council/wolverhampton","TFW RAIL SERVICES",8,"Research & Development","4112","Public Transport","12/09/2019"
"Wolverhampton City Council","http://opendatacommunities.org/id/metropolitan-district-council/wolverhampton","WWW.WOLVERHAMPTON.GOV.",75.28,"LAC Transitions Team","9399","Client Allowances","12/09/2019"
"Wolverhampton City Council","http://opendatacommunities.org/id/metropolitan-district-council/wolverhampton","Virgin Trains",-75.4,"City Development - Core Team","4112","Public Transport","12/09/2019"
"Wolverhampton City Council","http://opendatacommunities.org/id/metropolitan-district-council/wolverhampton","CARVER/WOLVERHAMPTON/L",35.53,"Cleaning of Buildings - General","5211","-","12/09/2019"
"Wolverhampton City Council","http://opendatacommunities.org/id/metropolitan-district-council/wolverhampton","ASDA GROCERIES ONLINE",156.77,"Duke Street Bungalows","5411","Provisions (Not for resale)","12/09/2019"
"Wolverhampton City Council","http://opendatacommunities.org/id/metropolitan-district-council/wolverhampton","Amazon.co.uk MA2CX3B84",66.15,"SEN Sensory Inclusion","5969","R4000","12/09/2019"
"Wolverhampton City Council","http://opendatacommunities.org/id/metropolitan-district-council/wolverhampton","ADVANCED CARD BURE",9,"Technical Support","5099","Materials","12/09/2019"
"Wolverhampton City Council","http://opendatacommunities.org/id/metropolitan-district-council/wolverhampton","AMZNMktplace",3.5,"Global Budgets","5999","Books","12/09/2019"
"Wolverhampton City Council","http://opendatacommunities.org/id/metropolitan-district-council/wolverhampton","POST OFFICE COUNTER",7.4,"Looked After Team 2","9402","Services - Fees and Charges","12/09/2019"
"Wolverhampton City Council","http://opendatacommunities.org/id/metropolitan-district-council/wolverhampton","BRITISH RED CROSS",199,"Workforce Development","8398","Training Expenses","12/09/2019"
"Wolverhampton City Council","http://opendatacommunities.org/id/metropolitan-district-council/wolverhampton","Virgin Trains",72,"HRA General","4112","Public Transport","12/09/2019"
"Wolverhampton City Council","http://opendatacommunities.org/id/metropolitan-district-council/wolverhampton","SAINSBURYS SACAT 2040",20,"Duke Street Bungalows","5411","R4010","11/09/2019"
"Wolverhampton City Council","http://opendatacommunities.org/id/metropolitan-district-council/wolverhampton","123 REG R/T",9.99,"Technical Support","5968","Subscriptions","11/09/2019"
"Wolverhampton City Council","http://opendatacommunities.org/id/metropolitan-district-council/wolverhampton","AMZNMKTPLACE AMAZON.CO",4.43,"Global Budgets","5999","Books","11/09/2019"
"Wolverhampton City Council","http://opendatacommunities.org/id/metropolitan-district-council/wolverhampton","B & Q 1243",72.38,"Bradley Resource Centre","5200","Materials","11/09/2019"
"Wolverhampton City Council","http://opendatacommunities.org/id/metropolitan-district-council/wolverhampton","Virgin Trains",55.8,"LAC Team","4112","Client Transport","11/09/2019"
"Wolverhampton City Council","http://opendatacommunities.org/id/metropolitan-district-council/wolverhampton","GOVERNMENT EVENTS",303.2,"Private Sector Housing","8641","Training Expenses","11/09/2019"
"Wolverhampton City Council","http://opendatacommunities.org/id/metropolitan-district-council/wolverhampton","VIRGIN MEDIA PYMTS",7.5,"Community Enablement","4814","Comms - Telephone Rental","11/09/2019"
"Wolverhampton City Council","http://opendatacommunities.org/id/metropolitan-district-council/wolverhampton","NO 5 CHAMBERS LTD",195,"Central Training","8111","Training Expenses","11/09/2019"
"Wolverhampton City Council","http://opendatacommunities.org/id/metropolitan-district-council/wolverhampton","HM PASSPORT OFFICE",85,"LAC Transitions Team","9399","Client Allowances","11/09/2019"
"Wolverhampton City Council","http://opendatacommunities.org/id/metropolitan-district-council/wolverhampton","WWW.BLACKWELL.CO.UK",20.99,"Planning","5943","Stationery","11/09/2019"
"Wolverhampton City Council","http://opendatacommunities.org/id/metropolitan-district-council/wolverhampton","WICKES WOLVERHAMPTON",6.67,"Northicote Farm","5211","Materials","11/09/2019"
"Wolverhampton City Council","http://opendatacommunities.org/id/metropolitan-district-council/wolverhampton","STERMAT CAR AND VA",442,"Towers Outdoor Education Centre","5541","Hire of Vehicles","11/09/2019"
"Wolverhampton City Council","http://opendatacommunities.org/id/metropolitan-district-council/wolverhampton","C L JONES HEAD OFFICE",229.76,"Towers Outdoor Education Centre","5211","Fixtures and Fittings - Purchases","11/09/2019"
"Wolverhampton City Council","http://opendatacommunities.org/id/metropolitan-district-council/wolverhampton","SAINSBURYS LOC4471",24.76,"Key to Inspiration","5411","R4000","11/09/2019"
"Wolverhampton City Council","http://opendatacommunities.org/id/metropolitan-district-council/wolverhampton","ASDA GROCERIES ONLINE",-5.3,"Bradley Resource Centre","5411","Provisions (Not for resale)","11/09/2019"
"Wolverhampton City Council","http://opendatacommunities.org/id/metropolitan-district-council/wolverhampton","ASDA GROCERIES ONLINE",67.98,"Bradley Resource Centre","5411","Provisions (Not for resale)","11/09/2019"
"Wolverhampton City Council","http://opendatacommunities.org/id/metropolitan-district-council/wolverhampton","DEBENHAMS",141.5,"IMPACT","5311","R4000","11/09/2019"
"Wolverhampton City Council","http://opendatacommunities.org/id/metropolitan-district-council/wolverhampton","DULUX DECORATOR CENTRE",-16.08,"Technician","5198","R4007","11/09/2019"
"Wolverhampton City Council","http://opendatacommunities.org/id/metropolitan-district-council/wolverhampton","Virgin Trains",191.1,"Children & Young People Support Costs","4112","Public Transport","11/09/2019"
"Wolverhampton City Council","http://opendatacommunities.org/id/metropolitan-district-council/wolverhampton","THE FLAG SHOP LTD",6.66,"Mayoral Expenses","5999","Materials","11/09/2019"
"Wolverhampton City Council","http://opendatacommunities.org/id/metropolitan-district-council/wolverhampton","PREMIER INN",219.5,"Regional Adoption Agency","3811","Accommodation Costs","11/09/2019"
"Wolverhampton City Council","http://opendatacommunities.org/id/metropolitan-district-council/wolverhampton","Amazon.co.uk MA0MC65W4",58.47,"Headstart Hubs","5969","Equipment - R & M","11/09/2019"
"Wolverhampton City Council","http://opendatacommunities.org/id/metropolitan-district-council/wolverhampton","HOME & MOTORSAVE LIMIT",29.92,"Aldersley Leisure Village","5039","R4400","11/09/2019"
"Wolverhampton City Council","http://opendatacommunities.org/id/metropolitan-district-council/wolverhampton","CUMMINGS BROTHERS LOCK",49.58,"Aldersley Leisure Village","7399","R4400","11/09/2019"
"Wolverhampton City Council","http://opendatacommunities.org/id/metropolitan-district-council/wolverhampton","HIGHSTREETVOUCHERS",120,"Connexions Contract","8641","Client Allowances","11/09/2019"
"Wolverhampton City Council","http://opendatacommunities.org/id/metropolitan-district-council/wolverhampton","RESPONSTER PLUS PLAN",15.9,"Communications & Marketing - General","5734","Computing - Purchase of Hardware","11/09/2019"
"Wolverhampton City Council","http://opendatacommunities.org/id/metropolitan-district-council/wolverhampton","AMZNMKTPLACE AMAZON.CO",85,"Public Health Support Costs","5999","Equipment - Hire","11/09/2019"
"Wolverhampton City Council","http://opendatacommunities.org/id/metropolitan-district-council/wolverhampton","Trainline.com",122.76,"Assistant Director - Public Health","4112","Public Transport","11/09/2019"
"Wolverhampton City Council","http://opendatacommunities.org/id/metropolitan-district-council/wolverhampton","Virgin Trains",29.35,"LAC Team","4112","Public Transport","11/09/2019"
"Wolverhampton City Council","http://opendatacommunities.org/id/metropolitan-district-council/wolverhampton","Virgin Trains",53.6,"LAC Team","4112","Client Transport","11/09/2019"
"Wolverhampton City Council","http://opendatacommunities.org/id/metropolitan-district-council/wolverhampton","SEVERN TRENT WATER",44.9,"LAC Transitions Team","4900","Client Allowances","11/09/2019"
"Wolverhampton City Council","http://opendatacommunities.org/id/metropolitan-district-council/wolverhampton","WWW.WOLVERHAMPTON.GOV.",500,"LAC Transitions Team","9399","Client Allowances","11/09/2019"
"Wolverhampton City Council","http://opendatacommunities.org/id/metropolitan-district-council/wolverhampton","WWW.WOLVERHAMPTON.GOV.",478.41,"LAC Transitions Team","9399","Client Allowances","11/09/2019"
"Wolverhampton City Council","http://opendatacommunities.org/id/metropolitan-district-council/wolverhampton","WWW.WOLVERHAMPTON.GOV.",358.16,"LAC Transitions Team","9399","Client Allowances","11/09/2019"
"Wolverhampton City Council","http://opendatacommunities.org/id/metropolitan-district-council/wolverhampton","WWW.WOLVERHAMPTON.GOV.",500,"LAC Transitions Team","9399","Client Transport","11/09/2019"
"Wolverhampton City Council","http://opendatacommunities.org/id/metropolitan-district-council/wolverhampton","Virgin Trains",178.6,"Black Country Transport Director","4112","Public Transport","10/09/2019"
"Wolverhampton City Council","http://opendatacommunities.org/id/metropolitan-district-council/wolverhampton","Virgin Trains",67.1,"Looked After Team 2","4112","Client Transport","10/09/2019"
"Wolverhampton City Council","http://opendatacommunities.org/id/metropolitan-district-council/wolverhampton","Virgin Trains",34.75,"Looked After Team 2","4112","Client Transport","10/09/2019"
"Wolverhampton City Council","http://opendatacommunities.org/id/metropolitan-district-council/wolverhampton","ASDA GROCERIES ONLINE",5,"Upper Pendeford Farm Childrens Home","5411","-","10/09/2019"
"Wolverhampton City Council","http://opendatacommunities.org/id/metropolitan-district-council/wolverhampton","WWW.WOLVERHAMPTON.GOV.",74.46,"LAC Transitions Team","9399","Client Allowances","10/09/2019"
"Wolverhampton City Council","http://opendatacommunities.org/id/metropolitan-district-council/wolverhampton","ARGOS LTD",19,"Duke Street Bungalows","5310","R4010","10/09/2019"
"Wolverhampton City Council","http://opendatacommunities.org/id/metropolitan-district-council/wolverhampton","SAINSBURYS 2040",15,"Duke Street Bungalows","5411","R4010","10/09/2019"
"Wolverhampton City Council","http://opendatacommunities.org/id/metropolitan-district-council/wolverhampton","NATWEST BANK",100,"Duke Street Bungalows","6011","Provisions (Not for resale)","10/09/2019"
"Wolverhampton City Council","http://opendatacommunities.org/id/metropolitan-district-council/wolverhampton","B&M RETAIL",59.96,"SEN Sensory Inclusion","5310","R4000","10/09/2019"
"Wolverhampton City Council","http://opendatacommunities.org/id/metropolitan-district-council/wolverhampton","B&M RETAIL",14.98,"SEN Sensory Inclusion","5310","R4000","10/09/2019"
"Wolverhampton City Council","http://opendatacommunities.org/id/metropolitan-district-council/wolverhampton","HOME BARGAINS WOLVERHA",10.82,"SEN Sensory Inclusion","5251","R4000","10/09/2019"
"Wolverhampton City Council","http://opendatacommunities.org/id/metropolitan-district-council/wolverhampton","HOME BARGAINS WOLVERHA",45.74,"SEN Sensory Inclusion","5251","R4000","10/09/2019"
"Wolverhampton City Council","http://opendatacommunities.org/id/metropolitan-district-council/wolverhampton","NAMESCO",52.79,"Communications & Marketing - General","4816","Marketing \ Non-staff advertising","10/09/2019"
"Wolverhampton City Council","http://opendatacommunities.org/id/metropolitan-district-council/wolverhampton","FUEL CARD SERVICES LTD",6,"Towers Outdoor Education Centre","7399","Petrol","10/09/2019"
"Wolverhampton City Council","http://opendatacommunities.org/id/metropolitan-district-council/wolverhampton","FUEL CARD SERVICES LTD",91.51,"Towers Outdoor Education Centre","7399","Petrol","10/09/2019"
"Wolverhampton City Council","http://opendatacommunities.org/id/metropolitan-district-council/wolverhampton","WWW.PARENTMAIL.CO.",25,"Key to Inspiration","8299","Provisions (Not for resale)","10/09/2019"
"Wolverhampton City Council","http://opendatacommunities.org/id/metropolitan-district-council/wolverhampton","ARGOS WOLVERHAMPTO",10.99,"Key to Inspiration","5310","Equipment - Health and Safety","10/09/2019"
"Wolverhampton City Council","http://opendatacommunities.org/id/metropolitan-district-council/wolverhampton","LIFESWONDERFUL LTD",64.99,"Bilston Town Hall","5999","Fixtures and Fittings - R&M","10/09/2019"
"Wolverhampton City Council","http://opendatacommunities.org/id/metropolitan-district-council/wolverhampton","WWW.ICELAND.CO.UK",50.45,"Bradley Resource Centre","5411","Provisions (Not for resale)","10/09/2019"
"Wolverhampton City Council","http://opendatacommunities.org/id/metropolitan-district-council/wolverhampton","HIGHSTREETVOUCHERS",456.5,"IMPACT","8641","R4000","10/09/2019"
"Wolverhampton City Council","http://opendatacommunities.org/id/metropolitan-district-council/wolverhampton","SHOE ZONE LTD 1165",19.99,"IMPACT","5661","R4000","10/09/2019"
"Wolverhampton City Council","http://opendatacommunities.org/id/metropolitan-district-council/wolverhampton","YOURS CLOTHING",44.03,"IMPACT","5621","R4000","10/09/2019"
"Wolverhampton City Council","http://opendatacommunities.org/id/metropolitan-district-council/wolverhampton","CITY OF WOLVERHAMPTON",16,"Looked After Team 2","9399","Financial Assistance In Exceptional Circ","10/09/2019"
"Wolverhampton City Council","http://opendatacommunities.org/id/metropolitan-district-council/wolverhampton","BOOKPOINT LIMITED",63.5,"Inclusion Support","5192","R4400","10/09/2019"
"Wolverhampton City Council","http://opendatacommunities.org/id/metropolitan-district-council/wolverhampton","WOLVERHAMPTON RACECOUR",250,"Inclusion Support","7011","Accommodation Costs","10/09/2019"
"Wolverhampton City Council","http://opendatacommunities.org/id/metropolitan-district-council/wolverhampton","BEATSABAR MUSIC PROJEC",142.47,"Youth Offending Team","5733","Services - Professional Fees","10/09/2019"
"Wolverhampton City Council","http://opendatacommunities.org/id/metropolitan-district-council/wolverhampton","NATWEST BANK",200,"Court Team","6011","Section 17","10/09/2019"
"Wolverhampton City Council","http://opendatacommunities.org/id/metropolitan-district-council/wolverhampton","WM MORRISONS STORE",22.2,"EIP Locality 2","5411","R4400","10/09/2019"
"Wolverhampton City Council","http://opendatacommunities.org/id/metropolitan-district-council/wolverhampton","MEADOW FARM",83.9,"Regional Adoption Agency","7011","Accommodation Costs","10/09/2019"
"Wolverhampton City Council","http://opendatacommunities.org/id/metropolitan-district-council/wolverhampton","POST OFFICE COUNTER",285,"Regional Adoption Agency","9402","Comms - Postage","10/09/2019"
"Wolverhampton City Council","http://opendatacommunities.org/id/metropolitan-district-council/wolverhampton","BLOXWICH NORTH SST",4.25,"Economic Development","4112","Public Transport","10/09/2019"
"Wolverhampton City Council","http://opendatacommunities.org/id/metropolitan-district-council/wolverhampton","Trainline",25.18,"Work Box","4112","Public Transport","10/09/2019"
"Wolverhampton City Council","http://opendatacommunities.org/id/metropolitan-district-council/wolverhampton","NEWITTS.COM",27.46,"Bert Williams Leisure Centre","5655","R4000","10/09/2019"
"Wolverhampton City Council","http://opendatacommunities.org/id/metropolitan-district-council/wolverhampton","AMZNMktplace",16.1,"LAC Education Team (LACE)","5999","Stationery","10/09/2019"
"Wolverhampton City Council","http://opendatacommunities.org/id/metropolitan-district-council/wolverhampton","Trainline",19.43,"Youth Offending Team","4112","Public Transport","10/09/2019"
"Wolverhampton City Council","http://opendatacommunities.org/id/metropolitan-district-council/wolverhampton","SAINSBURYS (2340)",8.45,"Youth Offending Team","5411","Provisions (Not for resale)","10/09/2019"
"Wolverhampton City Council","http://opendatacommunities.org/id/metropolitan-district-council/wolverhampton","Virgin Trains",189.45,"LAC Transitions Team","4112","Public Transport","10/09/2019"
"Wolverhampton City Council","http://opendatacommunities.org/id/metropolitan-district-council/wolverhampton","ENVOY OB TICKET",13.1,"Research & Development","4112","Public Transport","09/09/2019"
"Wolverhampton City Council","http://opendatacommunities.org/id/metropolitan-district-council/wolverhampton","ASDA GROCERIES ONLINE",-2.26,"Key to Inspiration","5411","Catering","09/09/2019"
"Wolverhampton City Council","http://opendatacommunities.org/id/metropolitan-district-council/wolverhampton","ASDA GROCERIES ONLINE",148.38,"Key to Inspiration","5411","Catering","09/09/2019"
"Wolverhampton City Council","http://opendatacommunities.org/id/metropolitan-district-council/wolverhampton","MCDONALDS",9.7,"Key to Inspiration","5814","Direct Work With Children","09/09/2019"
"Wolverhampton City Council","http://opendatacommunities.org/id/metropolitan-district-council/wolverhampton","MCDONALDS",5.08,"Key to Inspiration","5814","Direct Work With Children","09/09/2019"
"Wolverhampton City Council","http://opendatacommunities.org/id/metropolitan-district-council/wolverhampton","KFC WOLVERHAMPTON",29.07,"Key to Inspiration","5814","Direct Work With Children","09/09/2019"
"Wolverhampton City Council","http://opendatacommunities.org/id/metropolitan-district-council/wolverhampton","SPORTSDIRECT 383",34.99,"Key to Inspiration","5941","Clothing / Uniforms","09/09/2019"
"Wolverhampton City Council","http://opendatacommunities.org/id/metropolitan-district-council/wolverhampton","ASDA GROCERIES ONLINE",-5.42,"Bradley Resource Centre","5411","Provisions (Not for resale)","09/09/2019"
"Wolverhampton City Council","http://opendatacommunities.org/id/metropolitan-district-council/wolverhampton","ASDA GROCERIES ONLINE",134.88,"Bradley Resource Centre","5411","Provisions (Not for resale)","09/09/2019"
"Wolverhampton City Council","http://opendatacommunities.org/id/metropolitan-district-council/wolverhampton","WWW.WMCA.CO.UK",56.5,"IMPACT","9399","Public Transport","09/09/2019"
"Wolverhampton City Council","http://opendatacommunities.org/id/metropolitan-district-council/wolverhampton","DULUX DECORATOR CENTRE",66.62,"Technician","5198","R4007","09/09/2019"
"Wolverhampton City Council","http://opendatacommunities.org/id/metropolitan-district-council/wolverhampton","PREMIER INN",57.08,"Court Team","3811","Services - Supplies & Services to users","09/09/2019"
"Wolverhampton City Council","http://opendatacommunities.org/id/metropolitan-district-council/wolverhampton","NATWEST BANK",250,"CAT","6011","Financial Assistance In Exceptional Circ","09/09/2019"
"Wolverhampton City Council","http://opendatacommunities.org/id/metropolitan-district-council/wolverhampton","SAINSBURYS (2340)",28.45,"Adult Services - West","5411","Provisions (Not for resale)","09/09/2019"
"Wolverhampton City Council","http://opendatacommunities.org/id/metropolitan-district-council/wolverhampton","PREMIER INN",69,"Childrens with Disabilities Team","3811","Section 17","09/09/2019"
"Wolverhampton City Council","http://opendatacommunities.org/id/metropolitan-district-council/wolverhampton","WWW.WMCA.ORG.UK",13.96,"LAC Transitions Team","4111","Client Allowances","09/09/2019"
"Wolverhampton City Council","http://opendatacommunities.org/id/metropolitan-district-council/wolverhampton","PREMIER INN",-164,"Regional Adoption Agency","3811","Accommodation Costs","09/09/2019"
"Wolverhampton City Council","http://opendatacommunities.org/id/metropolitan-district-council/wolverhampton","Virgin Trains",90,"Regional Adoption Agency","4112","Public Transport","09/09/2019"
"Wolverhampton City Council","http://opendatacommunities.org/id/metropolitan-district-council/wolverhampton","POST OFFICE COUNTER",8.7,"Regional Adoption Agency","9402","Comms - Postage","09/09/2019"
"Wolverhampton City Council","http://opendatacommunities.org/id/metropolitan-district-council/wolverhampton","SurveyMonkey",384,"Communications & Marketing - General","7372","Subscriptions","09/09/2019"
"Wolverhampton City Council","http://opendatacommunities.org/id/metropolitan-district-council/wolverhampton","NAMESCO",34.99,"Communications & Marketing - General","4816","Computing - Purchase of Hardware","09/09/2019"
"Wolverhampton City Council","http://opendatacommunities.org/id/metropolitan-district-council/wolverhampton","DENNISWILLECOM",85,"LAC Transitions Team","5999","Client Allowances","09/09/2019"
"Wolverhampton City Council","http://opendatacommunities.org/id/metropolitan-district-council/wolverhampton","Amazon.co.uk MA0MK4M54",343.79,"Power2 Team","5969","Books","09/09/2019"
"Wolverhampton City Council","http://opendatacommunities.org/id/metropolitan-district-council/wolverhampton","Amazon.co.uk MA3M18M84",30.47,"Power2 Team","5969","Fixtures and Fittings - Purchases","09/09/2019"
"Wolverhampton City Council","http://opendatacommunities.org/id/metropolitan-district-council/wolverhampton","Trainline.com",276.25,"Public Health Support Costs","4112","Public Transport","09/09/2019"
"Wolverhampton City Council","http://opendatacommunities.org/id/metropolitan-district-council/wolverhampton","Trainline.com",311.05,"Service Director City Environment","4112","Public Transport","09/09/2019"
"Wolverhampton City Council","http://opendatacommunities.org/id/metropolitan-district-council/wolverhampton","ITUNES.COM/BILL",0.79,"ICT Services","5735","Computing - Purchase of Software","09/09/2019"
"Wolverhampton City Council","http://opendatacommunities.org/id/metropolitan-district-council/wolverhampton","AMZNMKTPLACE AMAZON.CO",22.87,"Upper Pendeford Farm Childrens Home","5999","Equipment - R & M","09/09/2019"
"Wolverhampton City Council","http://opendatacommunities.org/id/metropolitan-district-council/wolverhampton","London Northwestern Ra",81.6,"Service Director Adults","4112","Public Transport","09/09/2019"
"Wolverhampton City Council","http://opendatacommunities.org/id/metropolitan-district-council/wolverhampton","WWW.ARGOS.CO.UK",-166.66,"LAC Transitions Team","5310","Client Allowances","09/09/2019"
"Wolverhampton City Council","http://opendatacommunities.org/id/metropolitan-district-council/wolverhampton","LOTUS GARDEN",44.8,"Ernest Bold Court","5814","Provisions (Not for resale)","09/09/2019"
"Wolverhampton City Council","http://opendatacommunities.org/id/metropolitan-district-council/wolverhampton","ASDA GROCERIES ONLINE",-0.3,"Duke Street Bungalows","5411","Provisions (Not for resale)","09/09/2019"
"Wolverhampton City Council","http://opendatacommunities.org/id/metropolitan-district-council/wolverhampton","ASDA GROCERIES ONLINE",230.92,"Duke Street Bungalows","5411","Provisions (Not for resale)","09/09/2019"
"Wolverhampton City Council","http://opendatacommunities.org/id/metropolitan-district-council/wolverhampton","AMZNMktplace",53.77,"Learning Technologies","5999","Materials","09/09/2019"
"Wolverhampton City Council","http://opendatacommunities.org/id/metropolitan-district-council/wolverhampton","WICKES WOLVERHAMPTON",10.63,"Bradley Resource Centre","5211","Materials","09/09/2019"
"Wolverhampton City Council","http://opendatacommunities.org/id/metropolitan-district-council/wolverhampton","B & Q 1243",48.05,"Bradley Resource Centre","5200","R4007","09/09/2019"
"Wolverhampton City Council","http://opendatacommunities.org/id/metropolitan-district-council/wolverhampton","ASDA GROCERIES ONLINE",-0.15,"Ernest Bold Court","5411","Provisions (Not for resale)","09/09/2019"
"Wolverhampton City Council","http://opendatacommunities.org/id/metropolitan-district-council/wolverhampton","ASDA GROCERIES ONLINE",76.76,"Ernest Bold Court","5411","Provisions (Not for resale)","09/09/2019"
"Wolverhampton City Council","http://opendatacommunities.org/id/metropolitan-district-council/wolverhampton","REGISTRATIONLINE",150,"Workforce Development","7399","Training Expenses","09/09/2019"
"Wolverhampton City Council","http://opendatacommunities.org/id/metropolitan-district-council/wolverhampton","R H ENVIRONMENTAL LTD",198,"Central Training","5734","Training Expenses","09/09/2019"
"Wolverhampton City Council","http://opendatacommunities.org/id/metropolitan-district-council/wolverhampton","YOURCASH",60,"EIP Locality 7","6011","Educ Trips, Holidays, Outings, Activity","09/09/2019"
"Wolverhampton City Council","http://opendatacommunities.org/id/metropolitan-district-council/wolverhampton","PAYPAL  DECATHLONUK",83.32,"Northicote Farm","5941","Protective Clothing","09/09/2019"
"Wolverhampton City Council","http://opendatacommunities.org/id/metropolitan-district-council/wolverhampton","B&M RETAIL LTD",2.49,"LAC Transitions Team","5310","Client Allowances","06/09/2019"
"Wolverhampton City Council","http://opendatacommunities.org/id/metropolitan-district-council/wolverhampton","B&M RETAIL LTD",6.64,"LAC Transitions Team","5310","Client Allowances","06/09/2019"
"Wolverhampton City Council","http://opendatacommunities.org/id/metropolitan-district-council/wolverhampton","ARGOS RETAIL GROUP",27.99,"LAC Transitions Team","5310","-","06/09/2019"
"Wolverhampton City Council","http://opendatacommunities.org/id/metropolitan-district-council/wolverhampton","ARGOS RETAIL GROUP",23.32,"LAC Transitions Team","5310","Client Allowances","06/09/2019"
"Wolverhampton City Council","http://opendatacommunities.org/id/metropolitan-district-council/wolverhampton","TOOLSTATION LTD",20.29,"LAC Transitions Team","5251","Client Allowances","06/09/2019"
"Wolverhampton City Council","http://opendatacommunities.org/id/metropolitan-district-council/wolverhampton","WOLVERHAMPTON T/O",89.7,"IMPACT","4112","Public Transport","06/09/2019"
"Wolverhampton City Council","http://opendatacommunities.org/id/metropolitan-district-council/wolverhampton","Trainline.com",49.65,"School Standards Training & Safeguard","4112","Client Transport","06/09/2019"
"Wolverhampton City Council","http://opendatacommunities.org/id/metropolitan-district-council/wolverhampton","Trainline.com",56.27,"Childrens with Disabilities Team","4112","Section 17","06/09/2019"
"Wolverhampton City Council","http://opendatacommunities.org/id/metropolitan-district-council/wolverhampton","Virgin Trains",350,"Regional Adoption Agency","4112","Public Transport","06/09/2019"
"Wolverhampton City Council","http://opendatacommunities.org/id/metropolitan-district-council/wolverhampton","GOOGLE  ADS9680351324",500,"Communications & Marketing - General","5968","Subscriptions","06/09/2019"
"Wolverhampton City Council","http://opendatacommunities.org/id/metropolitan-district-council/wolverhampton","AMZNMktplace",20.75,"Bert Williams Leisure Centre","5999","R4000","06/09/2019"
"Wolverhampton City Council","http://opendatacommunities.org/id/metropolitan-district-council/wolverhampton","ASDA SUPERSTORE",48.27,"Mayoral Expenses","5411","-","06/09/2019"
"Wolverhampton City Council","http://opendatacommunities.org/id/metropolitan-district-council/wolverhampton","EE TOP UP VESTA",10,"School Crossing Patrol","4814","Comms - Mobile Telephones","06/09/2019"
"Wolverhampton City Council","http://opendatacommunities.org/id/metropolitan-district-council/wolverhampton","EE TOP UP VESTA",10,"School Crossing Patrol","4814","Comms - Mobile Telephones","06/09/2019"
"Wolverhampton City Council","http://opendatacommunities.org/id/metropolitan-district-council/wolverhampton","EE TOP UP VESTA",10,"School Crossing Patrol","4814","Comms - Mobile Telephones","06/09/2019"
"Wolverhampton City Council","http://opendatacommunities.org/id/metropolitan-district-council/wolverhampton","Virgin Trains",169.95,"Welfare Rights","4112","Public Transport","06/09/2019"
"Wolverhampton City Council","http://opendatacommunities.org/id/metropolitan-district-council/wolverhampton","WWW.ICO.GOV.UK",-40,"Members Expenses","9399","Subscriptions","06/09/2019"
"Wolverhampton City Council","http://opendatacommunities.org/id/metropolitan-district-council/wolverhampton","WWW.ICO.GOV.UK",-40,"Members Expenses","9399","Subscriptions","06/09/2019"
"Wolverhampton City Council","http://opendatacommunities.org/id/metropolitan-district-council/wolverhampton","WWW.ICO.GOV.UK",-40,"Members Expenses","9399","Subscriptions","06/09/2019"
"Wolverhampton City Council","http://opendatacommunities.org/id/metropolitan-district-council/wolverhampton","WWW.ICO.GOV.UK",-40,"Members Expenses","9399","Subscriptions","06/09/2019"
"Wolverhampton City Council","http://opendatacommunities.org/id/metropolitan-district-council/wolverhampton","WWW.ICO.GOV.UK",-40,"Members Expenses","9399","Subscriptions","06/09/2019"
"Wolverhampton City Council","http://opendatacommunities.org/id/metropolitan-district-council/wolverhampton","WWW.ICO.GOV.UK",-40,"Members Expenses","9399","Subscriptions","06/09/2019"
"Wolverhampton City Council","http://opendatacommunities.org/id/metropolitan-district-council/wolverhampton","WWW.ICO.GOV.UK",-40,"Members Expenses","9399","Subscriptions","06/09/2019"
"Wolverhampton City Council","http://opendatacommunities.org/id/metropolitan-district-council/wolverhampton","WWW.ICO.GOV.UK",-40,"Members Expenses","9399","Subscriptions","06/09/2019"
"Wolverhampton City Council","http://opendatacommunities.org/id/metropolitan-district-council/wolverhampton","WWW.ICO.GOV.UK",-40,"Members Expenses","9399","Subscriptions","06/09/2019"
"Wolverhampton City Council","http://opendatacommunities.org/id/metropolitan-district-council/wolverhampton","WWW.ICO.GOV.UK",-40,"Members Expenses","9399","Subscriptions","06/09/2019"
"Wolverhampton City Council","http://opendatacommunities.org/id/metropolitan-district-council/wolverhampton","WWW.ICO.GOV.UK",-40,"Members Expenses","9399","Subscriptions","06/09/2019"
"Wolverhampton City Council","http://opendatacommunities.org/id/metropolitan-district-council/wolverhampton","WWW.ICO.GOV.UK",-40,"Members Expenses","9399","Subscriptions","06/09/2019"
"Wolverhampton City Council","http://opendatacommunities.org/id/metropolitan-district-council/wolverhampton","WWW.ICO.GOV.UK",-40,"Members Expenses","9399","Subscriptions","06/09/2019"
"Wolverhampton City Council","http://opendatacommunities.org/id/metropolitan-district-council/wolverhampton","WWW.ICO.GOV.UK",-40,"Members Expenses","9399","Subscriptions","06/09/2019"
"Wolverhampton City Council","http://opendatacommunities.org/id/metropolitan-district-council/wolverhampton","THEKINGSFERRY.COUK",500,"Private Hire Vehicles","4131","Equipment - Hire","06/09/2019"
"Wolverhampton City Council","http://opendatacommunities.org/id/metropolitan-district-council/wolverhampton","LOYD 37 CHURCH STREET",200,"EIP Locality 8","6011","Educ Trips, Holidays, Outings, Activity","06/09/2019"
"Wolverhampton City Council","http://opendatacommunities.org/id/metropolitan-district-council/wolverhampton","LOYD 37 CHURCH STREET",200,"EIP Locality 8","6011","Grant Payments","06/09/2019"
"Wolverhampton City Council","http://opendatacommunities.org/id/metropolitan-district-council/wolverhampton","ASDA GROCERIES ONLINE",-0.42,"Bradley Resource Centre","5411","Provisions (Not for resale)","06/09/2019"
"Wolverhampton City Council","http://opendatacommunities.org/id/metropolitan-district-council/wolverhampton","ASDA GROCERIES ONLINE",150.48,"Bradley Resource Centre","5411","Provisions (Not for resale)","06/09/2019"
"Wolverhampton City Council","http://opendatacommunities.org/id/metropolitan-district-council/wolverhampton","Amazon.co.uk MA8AD91M4",201.72,"Strategic ICTS (ICT Serv Budget)","5969","Computing - Consumables","06/09/2019"
"Wolverhampton City Council","http://opendatacommunities.org/id/metropolitan-district-council/wolverhampton","Trainline",8.9,"Strategic ICTS (ICT Serv Budget)","4112","Public Transport","06/09/2019"
"Wolverhampton City Council","http://opendatacommunities.org/id/metropolitan-district-council/wolverhampton","ARGOS RETAIL GROUP",-27.99,"LAC Transitions Team","5310","Client Allowances","06/09/2019"
"Wolverhampton City Council","http://opendatacommunities.org/id/metropolitan-district-council/wolverhampton","AMZNMKTPLACE AMAZON.CO",26.98,"Panel Expenses Fostering & Adoption","5999","Stationery","06/09/2019"
"Wolverhampton City Council","http://opendatacommunities.org/id/metropolitan-district-council/wolverhampton","POST OFFICE COUNTER",2.26,"LAC Transitions Team","9402","Client Allowances","06/09/2019"
"Wolverhampton City Council","http://opendatacommunities.org/id/metropolitan-district-council/wolverhampton","TOOLSTATION LTD",20.59,"Public Conveniences","5251","-","06/09/2019"
"Wolverhampton City Council","http://opendatacommunities.org/id/metropolitan-district-council/wolverhampton","THE POST OFFICE",17.7,"Central Costs","9402","Comms - Postage","06/09/2019"
"Wolverhampton City Council","http://opendatacommunities.org/id/metropolitan-district-council/wolverhampton","DUNELM (SOFT FURNISHIN",106.46,"LAC Transitions Team","5714","Client Allowances","06/09/2019"
"Wolverhampton City Council","http://opendatacommunities.org/id/metropolitan-district-council/wolverhampton","YOUNG`S SHOE REPAIRS L",39.45,"Wolverhampton Indoor and Open Market","7251","R4000","06/09/2019"
"Wolverhampton City Council","http://opendatacommunities.org/id/metropolitan-district-council/wolverhampton","Virgin Trains",51.85,"LAC Team","4112","Client Transport","06/09/2019"
"Wolverhampton City Council","http://opendatacommunities.org/id/metropolitan-district-council/wolverhampton","WOLVERHAMPTON CITY COU",330,"Looked After Team 2","9399","Financial Assistance In Exceptional Circ","06/09/2019"
"Wolverhampton City Council","http://opendatacommunities.org/id/metropolitan-district-council/wolverhampton","ASDA GROCERIES ONLINE",-2.06,"Duke Street Bungalows","5411","Provisions (Not for resale)","06/09/2019"
"Wolverhampton City Council","http://opendatacommunities.org/id/metropolitan-district-council/wolverhampton","ASDA GROCERIES ONLINE",204.39,"Duke Street Bungalows","5411","Provisions (Not for resale)","06/09/2019"
"Wolverhampton City Council","http://opendatacommunities.org/id/metropolitan-district-council/wolverhampton","WWW.CII.CO.UK",212,"Workforce Development","8699","Training Expenses","06/09/2019"
"Wolverhampton City Council","http://opendatacommunities.org/id/metropolitan-district-council/wolverhampton","BRITISH RED CROSS",199,"Workforce Development","8398","Training Expenses","06/09/2019"
"Wolverhampton City Council","http://opendatacommunities.org/id/metropolitan-district-council/wolverhampton","WWW.ICO.GOV.UK",-40,"Members Expenses","9399","Subscriptions","06/09/2019"
"Wolverhampton City Council","http://opendatacommunities.org/id/metropolitan-district-council/wolverhampton","WWW.ICO.GOV.UK",-40,"Members Expenses","9399","Subscriptions","06/09/2019"
"Wolverhampton City Council","http://opendatacommunities.org/id/metropolitan-district-council/wolverhampton","WWW.ICO.GOV.UK",-40,"Members Expenses","9399","Subscriptions","06/09/2019"
"Wolverhampton City Council","http://opendatacommunities.org/id/metropolitan-district-council/wolverhampton","WWW.ICO.GOV.UK",-40,"Members Expenses","9399","Subscriptions","06/09/2019"
"Wolverhampton City Council","http://opendatacommunities.org/id/metropolitan-district-council/wolverhampton","WWW.ICO.GOV.UK",-40,"Members Expenses","9399","Subscriptions","06/09/2019"
"Wolverhampton City Council","http://opendatacommunities.org/id/metropolitan-district-council/wolverhampton","WWW.ICO.GOV.UK",-40,"Members Expenses","9399","Subscriptions","06/09/2019"
"Wolverhampton City Council","http://opendatacommunities.org/id/metropolitan-district-council/wolverhampton","WWW.ICO.GOV.UK",-40,"Members Expenses","9399","Subscriptions","06/09/2019"
"Wolverhampton City Council","http://opendatacommunities.org/id/metropolitan-district-council/wolverhampton","WWW.ICO.GOV.UK",-40,"Members Expenses","9399","Subscriptions","06/09/2019"
"Wolverhampton City Council","http://opendatacommunities.org/id/metropolitan-district-council/wolverhampton","WWW.ICO.GOV.UK",-40,"Members Expenses","9399","Subscriptions","06/09/2019"
"Wolverhampton City Council","http://opendatacommunities.org/id/metropolitan-district-council/wolverhampton","WWW.ICO.GOV.UK",-40,"Members Expenses","9399","Subscriptions","06/09/2019"
"Wolverhampton City Council","http://opendatacommunities.org/id/metropolitan-district-council/wolverhampton","WWW.ICO.GOV.UK",-40,"Members Expenses","9399","Subscriptions","06/09/2019"
"Wolverhampton City Council","http://opendatacommunities.org/id/metropolitan-district-council/wolverhampton","WWW.ICO.GOV.UK",-40,"Members Expenses","9399","Subscriptions","06/09/2019"
"Wolverhampton City Council","http://opendatacommunities.org/id/metropolitan-district-council/wolverhampton","COSTA COFFEE 43043885",10,"Central Costs","5814","Provisions (Not for resale)","05/09/2019"
"Wolverhampton City Council","http://opendatacommunities.org/id/metropolitan-district-council/wolverhampton","COSTA COFFEE 43043885",10,"Central Costs","5814","Provisions (Not for resale)","05/09/2019"
"Wolverhampton City Council","http://opendatacommunities.org/id/metropolitan-district-council/wolverhampton","FACEBK H4FSRLJC22",116.81,"Business Support Services","7311","Marketing \ Non-staff advertising","05/09/2019"
"Wolverhampton City Council","http://opendatacommunities.org/id/metropolitan-district-council/wolverhampton","Trainline",98.7,"Curatorial - Cultural Learning","4112","Public Transport","05/09/2019"
"Wolverhampton City Council","http://opendatacommunities.org/id/metropolitan-district-council/wolverhampton","Trainline.com",88.52,"Curatorial - Cultural Learning","4112","Public Transport","05/09/2019"
"Wolverhampton City Council","http://opendatacommunities.org/id/metropolitan-district-council/wolverhampton","LIDL GB WOLVERHAMPTON",10.47,"Community Enablement","5411","R4007","05/09/2019"
"Wolverhampton City Council","http://opendatacommunities.org/id/metropolitan-district-council/wolverhampton","WILKO RETAIL LIMIT",10,"Wolverhampton Indoor and Open Market","5722","R4000","05/09/2019"
"Wolverhampton City Council","http://opendatacommunities.org/id/metropolitan-district-council/wolverhampton","Amazon.co.uk MA8ZB7P64",100,"Communications & Marketing - General","5969","Marketing \ Non-staff advertising","05/09/2019"
"Wolverhampton City Council","http://opendatacommunities.org/id/metropolitan-district-council/wolverhampton","POST OFFICE COUNTER",201,"Civic Centre Catering","9402","Stationery","05/09/2019"
"Wolverhampton City Council","http://opendatacommunities.org/id/metropolitan-district-council/wolverhampton","WOLVERHAMPTON T/O",18.4,"IMPACT","4112","Public Transport","05/09/2019"
"Wolverhampton City Council","http://opendatacommunities.org/id/metropolitan-district-council/wolverhampton","TOOLED UP COM",25.75,"Technician","5251","R4000","05/09/2019"
"Wolverhampton City Council","http://opendatacommunities.org/id/metropolitan-district-council/wolverhampton","PAYPAL  ANOVATECHNO",480,"Technician","5732","R4000","05/09/2019"
"Wolverhampton City Council","http://opendatacommunities.org/id/metropolitan-district-council/wolverhampton","Amazon.co.uk MA7QG8114",7.98,"Citizenship, Language & Learning","5969","Books","05/09/2019"
"Wolverhampton City Council","http://opendatacommunities.org/id/metropolitan-district-council/wolverhampton","PAYPAL  SUPERSTARST",53.83,"Brass Bands","5331","Equipment - Health and Safety","05/09/2019"
"Wolverhampton City Council","http://opendatacommunities.org/id/metropolitan-district-council/wolverhampton","POST OFFICE COUNTER",12.6,"CIN/CP Social Work Unit - Area 1","9402","Stationery","05/09/2019"
"Wolverhampton City Council","http://opendatacommunities.org/id/metropolitan-district-council/wolverhampton","WWW.ARGOS.CO.UK",28.28,"LAC Transitions Team","5310","Independant Living Allowance","05/09/2019"
"Wolverhampton City Council","http://opendatacommunities.org/id/metropolitan-district-council/wolverhampton","WM MORRISONS STORE",17,"Bradley Resource Centre","5411","Catering","05/09/2019"
"Wolverhampton City Council","http://opendatacommunities.org/id/metropolitan-district-council/wolverhampton","WWW.BEAUCARE.COM",61.72,"Bradley Resource Centre","8099","Catering","05/09/2019"
"Wolverhampton City Council","http://opendatacommunities.org/id/metropolitan-district-council/wolverhampton","PREMIER INN",369,"Regional Adoption Agency","3811","Accommodation Costs","05/09/2019"
"Wolverhampton City Council","http://opendatacommunities.org/id/metropolitan-district-council/wolverhampton","AMZNMktplace",45.17,"Head of Strategic Commissioning � People","5999","R4000","05/09/2019"
"Wolverhampton City Council","http://opendatacommunities.org/id/metropolitan-district-council/wolverhampton","SPLASHTOP.COM",84.37,"Technical Support","5734","Computing - Purchase of Software","05/09/2019"
"Wolverhampton City Council","http://opendatacommunities.org/id/metropolitan-district-council/wolverhampton","AMZNMktplace",6.73,"Global Budgets","5999","Books","05/09/2019"
"Wolverhampton City Council","http://opendatacommunities.org/id/metropolitan-district-council/wolverhampton","B & Q 1243",5.4,"Ernest Bold Court","5200","R4000","05/09/2019"
"Wolverhampton City Council","http://opendatacommunities.org/id/metropolitan-district-council/wolverhampton","Virgin Trains",47,"LAC Team","4112","Public Transport","05/09/2019"
"Wolverhampton City Council","http://opendatacommunities.org/id/metropolitan-district-council/wolverhampton","ELLISONS WEB",110.58,"LAC Transitions Team","5977","Client Allowances","05/09/2019"
"Wolverhampton City Council","http://opendatacommunities.org/id/metropolitan-district-council/wolverhampton","WWW.NSINAILS.CO.UK",63.33,"LAC Transitions Team","7230","Client Allowances","05/09/2019"
"Wolverhampton City Council","http://opendatacommunities.org/id/metropolitan-district-council/wolverhampton","WWW.UNIFORMCOLLECTION.",77.91,"LAC Transitions Team","5137","Client Allowances","05/09/2019"
"Wolverhampton City Council","http://opendatacommunities.org/id/metropolitan-district-council/wolverhampton","Virgin Trains",288.6,"Trading Standards","4112","Services - Fees and Charges","05/09/2019"
"Wolverhampton City Council","http://opendatacommunities.org/id/metropolitan-district-council/wolverhampton","iZ  BH Appliances",154.17,"LAC Transitions Team","5999","Client Allowances","05/09/2019"
"Wolverhampton City Council","http://opendatacommunities.org/id/metropolitan-district-council/wolverhampton","ARGOS RETAIL GROUP",9.99,"Blakenhall Resource Centre","5310","R4007","05/09/2019"
"Wolverhampton City Council","http://opendatacommunities.org/id/metropolitan-district-council/wolverhampton","HOME BARGAINS WOLVERHA",7.96,"Upper Pendeford Farm Childrens Home","5251","Equipment - R & M","05/09/2019"
"Wolverhampton City Council","http://opendatacommunities.org/id/metropolitan-district-council/wolverhampton","ALBRIGHTON HARDWARE",5.98,"Aldersley Leisure Village","5251","Equipment - Hire","05/09/2019"
"Wolverhampton City Council","http://opendatacommunities.org/id/metropolitan-district-council/wolverhampton","ALBRIGHTON HARDWARE",5.82,"Aldersley Leisure Village","5251","Equipment - Hire","05/09/2019"
"Wolverhampton City Council","http://opendatacommunities.org/id/metropolitan-district-council/wolverhampton","AMZNMktplace",9.98,"Aldersley Leisure Village","5999","Equipment - Hire","05/09/2019"
"Wolverhampton City Council","http://opendatacommunities.org/id/metropolitan-district-council/wolverhampton","BLOXWICH NORTH SST",4.25,"Economic Development","4112","Public Transport","05/09/2019"
"Wolverhampton City Council","http://opendatacommunities.org/id/metropolitan-district-council/wolverhampton","CURRYS ONLINE",16.66,"Fostering Team & Allowances","5732","Computing - Purchase of Hardware","05/09/2019"
"Wolverhampton City Council","http://opendatacommunities.org/id/metropolitan-district-council/wolverhampton","EB  COUNTY LINES CONFE",69,"LAC Transitions Team","7399","Training Expenses","05/09/2019"
"Wolverhampton City Council","http://opendatacommunities.org/id/metropolitan-district-council/wolverhampton","ARGOS RETAIL GROUP",70.96,"Looked After Team 2","5310","Financial Assistance In Exceptional Circ","05/09/2019"
"Wolverhampton City Council","http://opendatacommunities.org/id/metropolitan-district-council/wolverhampton","Trainline.com",19.08,"Strategic Financial Services","4112","Public Transport","05/09/2019"
"Wolverhampton City Council","http://opendatacommunities.org/id/metropolitan-district-council/wolverhampton","Trainline.com",9.82,"Strategic Financial Services","4112","Public Transport","05/09/2019"
"Wolverhampton City Council","http://opendatacommunities.org/id/metropolitan-district-council/wolverhampton","CUMMINGS BROTHERS LOCK",54,"Public Conveniences","7399","-","05/09/2019"
"Wolverhampton City Council","http://opendatacommunities.org/id/metropolitan-district-council/wolverhampton","GEN REGISTER OFFICE",25,"LAC Team","9399","Financial Assistance In Exceptional Circ","05/09/2019"
"Wolverhampton City Council","http://opendatacommunities.org/id/metropolitan-district-council/wolverhampton","COMBINED COURT",170,"Looked After Team 2","9222","Financial Assistance In Exceptional Circ","05/09/2019"
"Wolverhampton City Council","http://opendatacommunities.org/id/metropolitan-district-council/wolverhampton","UNTOUCHABLES",27.98,"Upper Pendeford Farm Childrens Home","5231","Equipment - R & M","05/09/2019"
"Wolverhampton City Council","http://opendatacommunities.org/id/metropolitan-district-council/wolverhampton","Trainline.com",39.63,"Mental Health Assessment & Care Mgmt","4112","Conference Expenses","05/09/2019"
"Wolverhampton City Council","http://opendatacommunities.org/id/metropolitan-district-council/wolverhampton","Virgin Trains",92.4,"Scrutiny & Transparency","4112","Public Transport","05/09/2019"
"Wolverhampton City Council","http://opendatacommunities.org/id/metropolitan-district-council/wolverhampton","MCDONALDS",6.27,"LAC Transitions Team","5814","Client Allowances","04/09/2019"
"Wolverhampton City Council","http://opendatacommunities.org/id/metropolitan-district-council/wolverhampton","AMZNMKTPLACE AMAZON.CO",1275.77,"Strategic ICTS (ICT Serv Budget)","5999","-","04/09/2019"
"Wolverhampton City Council","http://opendatacommunities.org/id/metropolitan-district-council/wolverhampton","AMZNMKTPLACE AMAZON.CO",16.22,"Communications & Marketing - General","5999","Marketing \ Non-staff advertising","04/09/2019"
"Wolverhampton City Council","http://opendatacommunities.org/id/metropolitan-district-council/wolverhampton","HOME BARGAINS WOLVERHA",3.32,"Children & Young People Support Costs","5251","Client Allowances","04/09/2019"
"Wolverhampton City Council","http://opendatacommunities.org/id/metropolitan-district-council/wolverhampton","WWW.ICELAND.CO.UK",72.49,"Bradley Resource Centre","5411","Provisions (Not for resale)","04/09/2019"
"Wolverhampton City Council","http://opendatacommunities.org/id/metropolitan-district-council/wolverhampton","Amazon.co.uk MA7AW3AM4",19.77,"Keith Piper","5969","R4000","04/09/2019"
"Wolverhampton City Council","http://opendatacommunities.org/id/metropolitan-district-council/wolverhampton","WWW.ARGOS.CO.UK",550.76,"LAC Transitions Team","5310","Independant Living Allowance","04/09/2019"
"Wolverhampton City Council","http://opendatacommunities.org/id/metropolitan-district-council/wolverhampton","SEVERN TRENT WATER",68.89,"LAC Transitions Team","4900","Client Allowances","04/09/2019"
"Wolverhampton City Council","http://opendatacommunities.org/id/metropolitan-district-council/wolverhampton","SEVERN TRENT WATER",51.35,"LAC Transitions Team","4900","Client Allowances","04/09/2019"
"Wolverhampton City Council","http://opendatacommunities.org/id/metropolitan-district-council/wolverhampton","SPECSAVERSEVOUGB-",850,"Eye Test Vouchers (HR)","8043","Services - Fees and Charges","04/09/2019"
"Wolverhampton City Council","http://opendatacommunities.org/id/metropolitan-district-council/wolverhampton","SPECSAVERSEVOUGB-",850,"Eye Test Vouchers (HR)","8043","Services - Fees and Charges","04/09/2019"
"Wolverhampton City Council","http://opendatacommunities.org/id/metropolitan-district-council/wolverhampton","AMZNMKTPLACE AMAZON.CO",16.48,"Bert Williams Leisure Centre","5999","Equipment - R & M","04/09/2019"
"Wolverhampton City Council","http://opendatacommunities.org/id/metropolitan-district-council/wolverhampton","B & Q 1243",14.57,"Cemeteries","5200","Fixtures and Fittings - Purchases","04/09/2019"
"Wolverhampton City Council","http://opendatacommunities.org/id/metropolitan-district-council/wolverhampton","ASDA GROCERIES ONLINE",-4.66,"Upper Pendeford Farm Childrens Home","5411","Provisions (Not for resale)","04/09/2019"
"Wolverhampton City Council","http://opendatacommunities.org/id/metropolitan-district-council/wolverhampton","ASDA GROCERIES ONLINE",262.95,"Upper Pendeford Farm Childrens Home","5411","Provisions (Not for resale)","04/09/2019"
"Wolverhampton City Council","http://opendatacommunities.org/id/metropolitan-district-council/wolverhampton","Virgin Trains",88.35,"Looked After Team 2","4112","Public Transport","04/09/2019"
"Wolverhampton City Council","http://opendatacommunities.org/id/metropolitan-district-council/wolverhampton","Virgin Trains",34.75,"Looked After Team 2","4112","Client Transport","04/09/2019"
"Wolverhampton City Council","http://opendatacommunities.org/id/metropolitan-district-council/wolverhampton","AMZNMKTPLACE AMAZON.CO",18.98,"Delivery & OCE Development","5999","Equipment - R & M","04/09/2019"
"Wolverhampton City Council","http://opendatacommunities.org/id/metropolitan-district-council/wolverhampton","WILKO RETAIL LIMIT",56,"Central Costs","5722","R4400","04/09/2019"
"Wolverhampton City Council","http://opendatacommunities.org/id/metropolitan-district-council/wolverhampton","ALDI 48 772",48.82,"Community Enablement","5411","Materials","04/09/2019"
"Wolverhampton City Council","http://opendatacommunities.org/id/metropolitan-district-council/wolverhampton","OVO ENERGY LTD",77.11,"LAC Transitions Team","4900","Client Allowances","04/09/2019"
"Wolverhampton City Council","http://opendatacommunities.org/id/metropolitan-district-council/wolverhampton","Cross Country Trains",9,"Head of Strategic Commissioning � People","4112","Public Transport","04/09/2019"
"Wolverhampton City Council","http://opendatacommunities.org/id/metropolitan-district-council/wolverhampton","WHICH?",107.4,"Global Budgets","5192","Books","04/09/2019"
"Wolverhampton City Council","http://opendatacommunities.org/id/metropolitan-district-council/wolverhampton","CardtronicsUK",50,"EIP Locality 4","6011","Grant Payments","04/09/2019"
"Wolverhampton City Council","http://opendatacommunities.org/id/metropolitan-district-council/wolverhampton","ARGOS LTD",103.29,"LAC Transitions Team","5310","Client Allowances","04/09/2019"
"Wolverhampton City Council","http://opendatacommunities.org/id/metropolitan-district-council/wolverhampton","IKEA LTD 142 BIRMINGHA",155.25,"Upper Pendeford Farm Childrens Home","5712","Equipment - R & M","04/09/2019"
"Wolverhampton City Council","http://opendatacommunities.org/id/metropolitan-district-council/wolverhampton","EB  HOUSING SUMMIT 201",12.5,"Wholly Owned Company - Operations","7399","Conference Expenses","04/09/2019"
"Wolverhampton City Council","http://opendatacommunities.org/id/metropolitan-district-council/wolverhampton","AMZNMKTPLACE AMAZON.CO",56.71,"Strategic ICTS (ICT Serv Budget)","5999","Computing - Purchase of Hardware","03/09/2019"
"Wolverhampton City Council","http://opendatacommunities.org/id/metropolitan-district-council/wolverhampton","MARKS&SPENCER PLC",34.99,"Key to Inspiration","5411","Clothing / Uniforms","03/09/2019"
"Wolverhampton City Council","http://opendatacommunities.org/id/metropolitan-district-council/wolverhampton","POST OFFICE COUNTER",1.9,"LAC Transitions Team","9402","Client Allowances","03/09/2019"
"Wolverhampton City Council","http://opendatacommunities.org/id/metropolitan-district-council/wolverhampton","WWW.BRISTOWSUTOR.C",0,"Revenues","9399","R9382","03/09/2019"
"Wolverhampton City Council","http://opendatacommunities.org/id/metropolitan-district-council/wolverhampton","CUMMINGS BROTHERS LOCK",18.5,"Adult Services - West","7399","Furniture","03/09/2019"
"Wolverhampton City Council","http://opendatacommunities.org/id/metropolitan-district-council/wolverhampton","CURRYS ONLINE",150,"LAC Transitions Team","5732","Independant Living Allowance","03/09/2019"
"Wolverhampton City Council","http://opendatacommunities.org/id/metropolitan-district-council/wolverhampton","NATWEST BANK",200,"Court Team","6011","Section 17","03/09/2019"
"Wolverhampton City Council","http://opendatacommunities.org/id/metropolitan-district-council/wolverhampton","POUNDSTRETCHER 328",8.33,"LAC Transitions Team","5331","Client Allowances","03/09/2019"
"Wolverhampton City Council","http://opendatacommunities.org/id/metropolitan-district-council/wolverhampton","AMZNMKTPLACE AMAZON.CO",26.74,"Regional Adoption Agency","5999","-","03/09/2019"
"Wolverhampton City Council","http://opendatacommunities.org/id/metropolitan-district-council/wolverhampton","SSE",9.17,"EIP Locality 4","4900","Grant Payments","03/09/2019"
"Wolverhampton City Council","http://opendatacommunities.org/id/metropolitan-district-council/wolverhampton","Amazon.co.uk MA4E330X4",81.29,"Aldersley Leisure Village","5969","R4000","03/09/2019"
"Wolverhampton City Council","http://opendatacommunities.org/id/metropolitan-district-council/wolverhampton","ADDSEARCH",-5.89,"Communications & Marketing - General","7372","Computing - Purchase of Hardware","03/09/2019"
"Wolverhampton City Council","http://opendatacommunities.org/id/metropolitan-district-council/wolverhampton","WEST COAST TRAINS",-26.9,"LAC Transitions Team","4112","Public Transport","03/09/2019"
"Wolverhampton City Council","http://opendatacommunities.org/id/metropolitan-district-council/wolverhampton","WEST COAST TRAINS",26.9,"LAC Transitions Team","4112","Public Transport","03/09/2019"
"Wolverhampton City Council","http://opendatacommunities.org/id/metropolitan-district-council/wolverhampton","POST OFFICE COUNTER",5.5,"Cemeteries","9402","Comms - Postage","03/09/2019"
"Wolverhampton City Council","http://opendatacommunities.org/id/metropolitan-district-council/wolverhampton","Trainline.com",111.42,"Intensive Family Support Team","4112","Carers Holiday Breaks","03/09/2019"
"Wolverhampton City Council","http://opendatacommunities.org/id/metropolitan-district-council/wolverhampton","CITY OF WOLVERHAMPTON",27,"Looked After Team 2","9399","Financial Assistance In Exceptional Circ","03/09/2019"
"Wolverhampton City Council","http://opendatacommunities.org/id/metropolitan-district-council/wolverhampton","POST OFFICE COUNTER",8.7,"Looked After Team 2","9402","Comms - Postage","03/09/2019"
"Wolverhampton City Council","http://opendatacommunities.org/id/metropolitan-district-council/wolverhampton","Virgin Trains",327.1,"City Development - Core Team","4112","Public Transport","03/09/2019"
"Wolverhampton City Council","http://opendatacommunities.org/id/metropolitan-district-council/wolverhampton","Trainline",54.44,"Transportation General","4112","Events","03/09/2019"
"Wolverhampton City Council","http://opendatacommunities.org/id/metropolitan-district-council/wolverhampton","SQUARESPACE INC.",180,"Technical Support","7372","Computing - Purchase of Software","03/09/2019"
"Wolverhampton City Council","http://opendatacommunities.org/id/metropolitan-district-council/wolverhampton","WICKES WOLVERHAMPTON",8.33,"Specialist Support Service - North","5211","Equipment - R & M","03/09/2019"
"Wolverhampton City Council","http://opendatacommunities.org/id/metropolitan-district-council/wolverhampton","ASDA GROCERIES ONLINE",70.14,"Ernest Bold Court","5411","Provisions (Not for resale)","03/09/2019"
"Wolverhampton City Council","http://opendatacommunities.org/id/metropolitan-district-council/wolverhampton","Amazon.co.uk MA3RZ70B4",24.99,"Inclusion Support","5969","R4000","03/09/2019"
"Wolverhampton City Council","http://opendatacommunities.org/id/metropolitan-district-council/wolverhampton","LADS & LASSES SCHOOL W",67.48,"LAC Team","5641","Clothing / Uniforms","03/09/2019"
"Wolverhampton City Council","http://opendatacommunities.org/id/metropolitan-district-council/wolverhampton","CITY OF WOLVERHAMPTON",27,"Court Team","9399","Section 17","03/09/2019"
"Wolverhampton City Council","http://opendatacommunities.org/id/metropolitan-district-council/wolverhampton","AMZNMktplace",78.32,"Strategic ICTS (ICT Serv Budget)","5999","Computing - Purchase of Hardware","02/09/2019"
"Wolverhampton City Council","http://opendatacommunities.org/id/metropolitan-district-council/wolverhampton","FACEBK TS754LNA82",177.28,"Communications & Marketing - General","7311","Marketing \ Non-staff advertising","02/09/2019"
"Wolverhampton City Council","http://opendatacommunities.org/id/metropolitan-district-council/wolverhampton","FACEBK N5XEBNNAR2",305.52,"Communications & Marketing - General","7311","Marketing \ Non-staff advertising","02/09/2019"
"Wolverhampton City Council","http://opendatacommunities.org/id/metropolitan-district-council/wolverhampton","EB  DCDC19 CONFERENCE",53.4,"Archives","7399","Conference Expenses","02/09/2019"
"Wolverhampton City Council","http://opendatacommunities.org/id/metropolitan-district-council/wolverhampton","MARKS&SPENCER PLC",85.99,"Key to Inspiration","5411","Clothing / Uniforms","02/09/2019"
"Wolverhampton City Council","http://opendatacommunities.org/id/metropolitan-district-council/wolverhampton","ASDA GROCERIES ONLINE",0.76,"Key to Inspiration","5411","Catering","02/09/2019"
"Wolverhampton City Council","http://opendatacommunities.org/id/metropolitan-district-council/wolverhampton","ASDA GROCERIES ONLINE",172.99,"Key to Inspiration","5411","Catering","02/09/2019"
"Wolverhampton City Council","http://opendatacommunities.org/id/metropolitan-district-council/wolverhampton","SUPERDRUG STORES PLC",9.16,"Key to Inspiration","5912","Direct Work With Children","02/09/2019"
"Wolverhampton City Council","http://opendatacommunities.org/id/metropolitan-district-council/wolverhampton","BOOTS",35.85,"Key to Inspiration","5912","Equipment - Health and Safety","02/09/2019"
"Wolverhampton City Council","http://opendatacommunities.org/id/metropolitan-district-council/wolverhampton","ASDA STORE",37.76,"Bradley Resource Centre","5411","Provisions (Not for resale)","02/09/2019"
"Wolverhampton City Council","http://opendatacommunities.org/id/metropolitan-district-council/wolverhampton","SIMPLY CONVENIENCE",6.58,"Bradley Resource Centre","5411","Provisions (Not for resale)","02/09/2019"
"Wolverhampton City Council","http://opendatacommunities.org/id/metropolitan-district-council/wolverhampton","ASDA GROCERIES ONLINE",-11.07,"Bradley Resource Centre","5411","Provisions (Not for resale)","02/09/2019"
"Wolverhampton City Council","http://opendatacommunities.org/id/metropolitan-district-council/wolverhampton","ASDA GROCERIES ONLINE",137.8,"Bradley Resource Centre","5411","Provisions (Not for resale)","02/09/2019"
"Wolverhampton City Council","http://opendatacommunities.org/id/metropolitan-district-council/wolverhampton","WEST MID TRAVEL",436.35,"IMPACT","4131","Public Transport","02/09/2019"
"Wolverhampton City Council","http://opendatacommunities.org/id/metropolitan-district-council/wolverhampton","FACEBK NFQF2MAG52",20,"Arts Publicity","7311","Marketing \ Non-staff advertising","02/09/2019"
"Wolverhampton City Council","http://opendatacommunities.org/id/metropolitan-district-council/wolverhampton","EDMUNDSON ELECTRICAL L",59.82,"Street Lighting Maintenance","5065","Equipment - R & M","02/09/2019"
"Wolverhampton City Council","http://opendatacommunities.org/id/metropolitan-district-council/wolverhampton","WOLVERHAMPTON HOTEL",210,"Destitute Plus","7011","Accommodation Costs","02/09/2019"
"Wolverhampton City Council","http://opendatacommunities.org/id/metropolitan-district-council/wolverhampton","PREMIER INN",181,"Regional Adoption Agency","3811","-","02/09/2019"
"Wolverhampton City Council","http://opendatacommunities.org/id/metropolitan-district-council/wolverhampton","WOLVERHAMPTON T/O",18,"City Direct","4112","Public Transport","02/09/2019"
"Wolverhampton City Council","http://opendatacommunities.org/id/metropolitan-district-council/wolverhampton","AMZNMktplace",71.06,"Public Health Support Costs","5999","-","02/09/2019"
"Wolverhampton City Council","http://opendatacommunities.org/id/metropolitan-district-council/wolverhampton","AMZNMktplace",6.98,"Ward Fund - St Peter�s","5999","R4400","02/09/2019"
"Wolverhampton City Council","http://opendatacommunities.org/id/metropolitan-district-council/wolverhampton","Virgin Trains",71.1,"Delivery & OCE Development","4112","-","02/09/2019"
"Wolverhampton City Council","http://opendatacommunities.org/id/metropolitan-district-council/wolverhampton","FACEBK K5M4UL2D22",383.19,"Business Support Services","7311","Marketing \ Non-staff advertising","02/09/2019"
"Wolverhampton City Council","http://opendatacommunities.org/id/metropolitan-district-council/wolverhampton","AMZNMktplace",4.67,"Global Budgets","5999","Books","02/09/2019"
"Wolverhampton City Council","http://opendatacommunities.org/id/metropolitan-district-council/wolverhampton","Virgin Trains",55.8,"LAC Team","4112","Client Transport","02/09/2019"
"Wolverhampton City Council","http://opendatacommunities.org/id/metropolitan-district-council/wolverhampton","ASDA GROCERIES ONLINE",-1.1,"Ernest Bold Court","5411","Provisions (Not for resale)","02/09/2019"
"Wolverhampton City Council","http://opendatacommunities.org/id/metropolitan-district-council/wolverhampton","ASDA GROCERIES ONLINE",65.08,"Ernest Bold Court","5411","Provisions (Not for resale)","02/09/2019"
"Wolverhampton City Council","http://opendatacommunities.org/id/metropolitan-district-council/wolverhampton","CITY OF WOLVERHAMPTON",27,"Head of Service - CINCP","9399","Services - Professional Fees","02/09/2019"
"Wolverhampton City Council","http://opendatacommunities.org/id/metropolitan-district-council/wolverhampton","PRIMARK 684",8,"Upper Pendeford Farm Childrens Home","5651","Equipment - R & M","02/09/2019"
"Wolverhampton City Council","http://opendatacommunities.org/id/metropolitan-district-council/wolverhampton","THE WORKS",8,"Upper Pendeford Farm Childrens Home","5310","Equipment - R & M","02/09/2019"
"Wolverhampton City Council","http://opendatacommunities.org/id/metropolitan-district-council/wolverhampton","POUNDLAND",16,"Upper Pendeford Farm Childrens Home","5310","Equipment - R & M","02/09/2019"
"Wolverhampton City Council","http://opendatacommunities.org/id/metropolitan-district-council/wolverhampton","DUNELM (SOFT FURNISHIN",323.9,"Upper Pendeford Farm Childrens Home","5714","Equipment - R & M","02/09/2019"
"Wolverhampton City Council","http://opendatacommunities.org/id/metropolitan-district-council/wolverhampton","REDWINGS LODGE",279.9,"Destitute Plus","7011","Accommodation Costs","02/09/2019"
"Wolverhampton City Council","http://opendatacommunities.org/id/metropolitan-district-council/wolverhampton","BOOSEY & HAWKES",140.75,"Music Support Team","5733","Books","02/09/2019"
"Wolverhampton City Council","http://opendatacommunities.org/id/metropolitan-district-council/wolverhampton","BOOSEY & HAWKES",500,"Music Support Team","5733","Books","02/09/2019"
"Wolverhampton City Council","http://opendatacommunities.org/id/metropolitan-district-council/wolverhampton","AMZNMktplace",99.95,"Parks - Ranger Service","5999","R4000","02/09/2019"
"Wolverhampton City Council","http://opendatacommunities.org/id/metropolitan-district-council/wolverhampton","PCS BOSTICO INTERNATIO",998.11,"Adult Services - East","7399","Services - Translation fees","02/09/2019"
"Wolverhampton City Council","http://opendatacommunities.org/id/metropolitan-district-council/wolverhampton","Virgin Trains",37.45,"Members Expenses","4112","Public Transport","02/09/2019"
